Workbook

Sheet Frontal
A2: N° | B2: Date Commande | C2: Semaine | D2: Mois | E2: Année | F2: Responsable | G2: CF | H2: Atelier | I2: Demandeur | J2: Catégorie | K2: Reference | L2: Désignation | M2: Catégorie2 | N2: Colonne3 | O2: prix unité | P2: Nb | Q2: prix total | R2: Date livraison | S2: OK/NOK
A3: 1 | B3: 2019-02-27 | C3: =WEEKNUM($B3,2)-(WEEKDAY(DATE(YEAR(B3),1,4),2)<4)*1 -> 9 | D3: =TEXT([1]Frontal!$B$3:$B$165,"MMMM") -> février | E3: =TEXT([1]Frontal!$B$3:$B$165,"AAAA") -> 2019 | F3: Saida. Benahmina | G3: =VLOOKUP([1]Frontal!$F3,[1]Liste!A:C,3,0) -> 9968 | H3: Francois. Hanne | I3: AQM | J3: Francois Hanne | K3: X951506724 | L3: =VLOOKUP([1]Frontal!$K3,[1]REF!B:C,2,0) -> Bouchon D'oreille | M3: Consommable | N3: =LEN(K3) -> 10 | O3: =VLOOKUP([1]Frontal!$K3,[1]REF!B:D,3,0) -> 1.01 | P3: 50 | Q3: =[1]Frontal!$P$3:$P$165*[1]Frontal!$O$3:$O$165 -> 50.5 | R3: 2019-01-17 | S3: =IF(R3,"OK","NOK") -> OK
A4: 2 | B4: 2019-03-09 | C4: 10 | D4: =TEXT([1]Frontal!$B$3:$B$165,"MMMM") -> mars | E4: =TEXT([1]Frontal!$B$3:$B$165,"AAAA") -> 2019 | F4: Matthieu. Pimont | G4: 9964 | H4: Daniel. Szekula | I4: Métrologie | J4: 2019-03-09 | K4: R100601459 | L4: =VLOOKUP([1]Frontal!$K4,[1]REF!B:C,2,0) -> Chaussures H BASSES CUIR FLEUR NOIR HYDROFUGE Taille 43 | M4: EPI | N4: 10 | O4: =VLOOKUP([1]Frontal!$K4,[1]REF!B:D,3,0) -> 20.8 | P4: 1 | Q4: =[1]Frontal!$P$3:$P$165*[1]Frontal!$O$3:$O$165 -> 20.8 | R4: 2019-01-18 | S4: =IF(R4,"OK","NOK") -> OK
A5: 3 | B5: 2019-01-18 | C5: 3 | D5: =TEXT([1]Frontal!$B$3:$B$165,"MMMM") -> janvier | E5: =TEXT([1]Frontal!$B$3:$B$165,"AAAA") -> 2019 | F5: Saida. Benahmina | G5: =VLOOKUP([1]Frontal!$F5,[1]Liste!A:C,3,0) -> 9968 | H5: Daniel. Jouy | I5: Bloqueur | J5: Daniel. Jouy | K5: R100518626 | L5: =VLOOKUP([1]Frontal!$K5,[1]REF!B:C,2,0) -> Chaussures H VILLE TYPE MOCASSIN CUIR PLEINE FLEUR Taille 40 | M5: EPI | N5: 10 | O5: =VLOOKUP([1]Frontal!$K5,[1]REF!B:D,3,0) -> 33.73 | P5: 1 | Q5: =[1]Frontal!$P$3:$P$165*[1]Frontal!$O$3:$O$165 -> 33.73 | R5: 2019-01-18 | S5: OK
A6: 4 | B6: 2019-01-18 | C6: 3 | D6: =TEXT([1]Frontal!$B$3:$B$165,"MMMM") -> janvier | E6: =TEXT([1]Frontal!$B$3:$B$165,"AAAA") -> 2019 | F6: Saida. Benahmina | G6: =VLOOKUP([1]Frontal!$F6,[1]Liste!A:C,3,0) -> 9968 | H6: Fabrice. Richard | I6: CSC | J6: Peggy. Guenez | K6: R100364315 | L6: =VLOOKUP([1]Frontal!$K6,[1]REF!B:C,2,0) -> Chaussures F TENNIS EN CROUPON VELOURS ROUGE Taille 37 | M6: EPI | N6: 10 | O6: =VLOOKUP([1]Frontal!$K6,[1]REF!B:D,3,0) -> 33.4 | P6: 1 | Q6: =[1]Frontal!$P$3:$P$165*[1]Frontal!$O$3:$O$165 -> 33.4 | R6: 2019-01-18 | S6: OK
A7: 5 | B7: 2019-01-18 | C7: 3 | D7: =TEXT([1]Frontal!$B$3:$B$165,"MMMM") -> janvier | E7: =TEXT([1]Frontal!$B$3:$B$165,"AAAA") -> 2019 | F7: Saida. Benahmina | G7: =VLOOKUP([1]Frontal!$F7,[1]Liste!A:C,3,0) -> 9968 | H7: Cindy. Thorez | I7: CSC | J7: Cindy. Thorez | K7: 4939031057 | L7: =VLOOKUP([1]Frontal!$K7,[1]REF!B:C,2,0) -> Pastilles adhésives ovales VERT | M7: Consommable | N7: 10 | O7: =VLOOKUP([1]Frontal!$K7,[1]REF!B:D,3,0) -> 7.61 | P7: 50 | Q7: =[1]Frontal!$P$3:$P$165*[1]Frontal!$O$3:$O$165 -> 380.5 | R7: 2019-01-18 | S7: OK
A8: 6 | B8: 2019-01-21 | C8: 4 | D8: =TEXT([1]Frontal!$B$3:$B$165,"MMMM") -> janvier | E8: =TEXT([1]Frontal!$B$3:$B$165,"AAAA") -> 2019 | F8: Saida. Benahmina | G8: =VLOOKUP([1]Frontal!$F8,[1]Liste!A:C,3,0) -> 9968 | H8: Cindy. Thorez | I8: CSC | J8: Fanny. Drapier | K8: R100364314 | L8: =VLOOKUP([1]Frontal!$K8,[1]REF!B:C,2,0) -> Chaussures F TENNIS EN CROUPON VELOURS ROUGE Taille 36 | M8: EPI | N8: 10 | O8: =VLOOKUP([1]Frontal!$K8,[1]REF!B:D,3,0) -> 33.4 | P8: 1 | Q8: =[1]Frontal!$P$3:$P$165*[1]Frontal!$O$3:$O$165 -> 33.4 | R8: 2019-01-21 | S8: OK
A9: 7 | B9: 2019-01-21 | C9: 4 | D9: =TEXT([1]Frontal!$B$3:$B$165,"MMMM") -> janvier | E9: =TEXT([1]Frontal!$B$3:$B$165,"AAAA") -> 2019 | F9: Vincent. Loquet | G9: =VLOOKUP([1]Frontal!$F9,[1]Liste!A:C,3,0) -> 9978 | H9: Vincent. Loquet | I9: QPN | J9: John Duez | K9: R100503610 | L9: =VLOOKUP([1]Frontal!$K9,[1]REF!B:C,2,0) -> Blouson Matelassé Taille XL 48/50-3 | M9: EPI | N9: 10 | O9: =VLOOKUP([1]Frontal!$K9,[1]REF!B:D,3,0) -> 20.95 | P9: 1 | Q9: =[1]Frontal!$P$3:$P$165*[1]Frontal!$O$3:$O$165 -> 20.95 | R9: 2019-01-21 | S9: OK
A10: 8 | B10: 2019-01-21 | C10: 4 | D10: =TEXT([1]Frontal!$B$3:$B$165,"MMMM") -> janvier | E10: =TEXT([1]Frontal!$B$3:$B$165,"AAAA") -> 2019 | F10: Vincent. Loquet | G10: =VLOOKUP([1]Frontal!$F10,[1]Liste!A:C,3,0) -> 9978 | H10: Vincent. Loquet | I10: QPN | J10: Jeremy Pierzchala | K10: R100503610 | L10: =VLOOKUP([1]Frontal!$K10,[1]REF!B:C,2,0) -> Blouson Matelassé Taille XL 48/50-3 | M10: EPI | N10: 10 | O10: =VLOOKUP([1]Frontal!$K10,[1]REF!B:D,3,0) -> 20.95 | P10: 1 | Q10: =[1]Frontal!$P$3:$P$165*[1]Frontal!$O$3:$O$165 -> 20.95 | R10: 2019-01-21 | S10: OK
A11: 9 | B11: 2019-01-21 | C11: 4 | D11: =TEXT([1]Frontal!$B$3:$B$165,"MMMM") -> janvier | E11: =TEXT([1]Frontal!$B$3:$B$165,"AAAA") -> 2019 | F11: Vincent. Loquet | G11: =VLOOKUP([1]Frontal!$F11,[1]Liste!A:C,3,0) -> 9978 | H11: Vincent. Loquet | I11: QPN | J11: Ludovic Thomas | K11: R100503610 | L11: =VLOOKUP([1]Frontal!$K11,[1]REF!B:C,2,0) -> Blouson Matelassé Taille XL 48/50-3 | M11: EPI | N11: 10 | O11: =VLOOKUP([1]Frontal!$K11,[1]REF!B:D,3,0) -> 20.95 | P11: 1 | Q11: =[1]Frontal!$P$3:$P$165*[1]Frontal!$O$3:$O$165 -> 20.95 | R11: 2019-01-21 | S11: OK
A12: 10 | B12: 2019-01-21 | C12: 4 | D12: =TEXT([1]Frontal!$B$3:$B$165,"MMMM") -> janvier | E12: =TEXT([1]Frontal!$B$3:$B$165,"AAAA") -> 2019 | F12: Vincent. Loquet | G12: =VLOOKUP([1]Frontal!$F12,[1]Liste!A:C,3,0) -> 9978 | H12: Vincent. Loquet | I12: QPN | J12: Loic Warlouzet | K12: R100503610 | L12: =VLOOKUP([1]Frontal!$K12,[1]REF!B:C,2,0) -> Blouson Matelassé Taille XL 48/50-3 | M12: EPI | N12: 10 | O12: =VLOOKUP([1]Frontal!$K12,[1]REF!B:D,3,0) -> 20.95 | P12: 1 | Q12: =[1]Frontal!$P$3:$P$165*[1]Frontal!$O$3:$O$165 -> 20.95 | R12: 2019-01-21 | S12: OK
A13: 11 | B13: 2019-01-21 | C13: 4 | D13: =TEXT([1]Frontal!$B$3:$B$165,"MMMM") -> janvier | E13: =TEXT([1]Frontal!$B$3:$B$165,"AAAA") -> 2019 | F13: Vincent. Loquet | G13: =VLOOKUP([1]Frontal!$F13,[1]Liste!A:C,3,0) -> 9978 | H13: Vincent. Loquet | I13: QPN | J13: Nadine Cauchy | K13: R100503610 | L13: =VLOOKUP([1]Frontal!$K13,[1]REF!B:C,2,0) -> Blouson Matelassé Taille XL 48/50-3 | M13: EPI | N13: 10 | O13: =VLOOKUP([1]Frontal!$K13,[1]REF!B:D,3,0) -> 20.95 | P13: 1 | Q13: =[1]Frontal!$P$3:$P$165*[1]Frontal!$O$3:$O$165 -> 20.95 | R13: 2019-01-21 | S13: OK
A14: 12 | B14: 2019-01-21 | C14: 4 | D14: =TEXT([1]Frontal!$B$3:$B$165,"MMMM") -> janvier | E14: =TEXT([1]Frontal!$B$3:$B$165,"AAAA") -> 2019 | F14: Vincent. Loquet | G14: =VLOOKUP([1]Frontal!$F14,[1]Liste!A:C,3,0) -> 9978 | H14: Vincent. Loquet | I14: QPN | J14: Fabrice Houssin | K14: R100503612 | L14: =VLOOKUP([1]Frontal!$K14,[1]REF!B:C,2,0) -> Blouson Matelassé Taille XXXL 56/58-5 | M14: EPI | N14: 10 | O14: =VLOOKUP([1]Frontal!$K14,[1]REF!B:D,3,0) -> 18.48 | P14: 1 | Q14: =[1]Frontal!$P$3:$P$165*[1]Frontal!$O$3:$O$165 -> 18.48 | R14: 2019-01-21 | S14: OK
A15: 13 | B15: 2019-01-24 | C15: 4 | D15: =TEXT([1]Frontal!$B$3:$B$165,"MMMM") -> janvier | E15: =TEXT([1]Frontal!$B$3:$B$165,"AAAA") -> 2019 | F15: Vincent. Loquet | G15: =VLOOKUP([1]Frontal!$F15,[1]Liste!A:C,3,0) -> 9978 | H15: Vincent. Loquet | I15: QPN | J15: Rudy Faucherant | K15: R100503613 | L15: =VLOOKUP([1]Frontal!$K15,[1]REF!B:C,2,0) -> Blouson Matelassé Taille XXXXL-T6 | M15: EPI | N15: 10 | O15: =VLOOKUP([1]Frontal!$K15,[1]REF!B:D,3,0) -> 18.48 | P15: 1 | Q15: =[1]Frontal!$P$3:$P$165*[1]Frontal!$O$3:$O$165 -> 18.48 | R15: 2019-01-21 | S15: OK
A16: 14 | B16: 2019-01-21 | C16: 4 | D16: =TEXT([1]Frontal!$B$3:$B$165,"MMMM") -> janvier | E16: =TEXT([1]Frontal!$B$3:$B$165,"AAAA") -> 2019 | F16: Vincent. Loquet | G16: =VLOOKUP([1]Frontal!$F16,[1]Liste!A:C,3,0) -> 9978 | H16: Vincent. Loquet | I16: QPN | J16: Jeremy Pierzchala | K16: R100583445 | L16: =VLOOKUP([1]Frontal!$K16,[1]REF!B:C,2,0) -> Parka HV Jaune Taille L | M16: EPI | N16: 10 | O16: =VLOOKUP([1]Frontal!$K16,[1]REF!B:D,3,0) -> 33.69 | P16: 1 | Q16: =[1]Frontal!$P$3:$P$165*[1]Frontal!$O$3:$O$165 -> 33.69 | R16: 2019-01-21 | S16: OK
A17: 15 | B17: 2019-01-21 | C17: 4 | D17: =TEXT([1]Frontal!$B$3:$B$165,"MMMM") -> janvier | E17: =TEXT([1]Frontal!$B$3:$B$165,"AAAA") -> 2019 | F17: Vincent. Loquet | G17: =VLOOKUP([1]Frontal!$F17,[1]Liste!A:C,3,0) -> 9978 | H17: Vincent. Loquet | I17: QPN | J17: John Duez | K17: R100583445 | L17: =VLOOKUP([1]Frontal!$K17,[1]REF!B:C,2,0) -> Parka HV Jaune Taille L | M17: EPI | N17: 10 | O17: =VLOOKUP([1]Frontal!$K17,[1]REF!B:D,3,0) -> 33.69 | P17: 1 | Q17: =[1]Frontal!$P$3:$P$165*[1]Frontal!$O$3:$O$165 -> 33.69 | R17: 2019-01-21 | S17: OK
A18: 16 | B18: 2019-01-21 | C18: 4 | D18: =TEXT([1]Frontal!$B$3:$B$165,"MMMM") -> janvier | E18: =TEXT([1]Frontal!$B$3:$B$165,"AAAA") -> 2019 | F18: Vincent. Loquet | G18: =VLOOKUP([1]Frontal!$F18,[1]Liste!A:C,3,0) -> 9978 | H18: Vincent. Loquet | I18: QPN | J18: Ludovic Thomas | K18: R100583445 | L18: =VLOOKUP([1]Frontal!$K18,[1]REF!B:C,2,0) -> Parka HV Jaune Taille L | M18: EPI | N18: 10 | O18: =VLOOKUP([1]Frontal!$K18,[1]REF!B:D,3,0) -> 33.69 | P18: 1 | Q18: =[1]Frontal!$P$3:$P$165*[1]Frontal!$O$3:$O$165 -> 33.69 | R18: 2019-01-21 | S18: OK
A19: 17 | B19: 2019-01-21 | C19: 4 | D19: =TEXT([1]Frontal!$B$3:$B$165,"MMMM") -> janvier | E19: =TEXT([1]Frontal!$B$3:$B$165,"AAAA") -> 2019 | F19: Vincent. Loquet | G19: =VLOOKUP([1]Frontal!$F19,[1]Liste!A:C,3,0) -> 9978 | H19: Vincent. Loquet | I19: QPN | J19: Loic Warlouzet | K19: R100583445 | L19: =VLOOKUP([1]Frontal!$K19,[1]REF!B:C,2,0) -> Parka HV Jaune Taille L | M19: EPI | N19: 10 | O19: =VLOOKUP([1]Frontal!$K19,[1]REF!B:D,3,0) -> 33.69 | P19: 1 | Q19: =[1]Frontal!$P$3:$P$165*[1]Frontal!$O$3:$O$165 -> 33.69 | R19: 2019-01-21 | S19: OK
A20: 18 | B20: 2019-01-21 | C20: 4 | D20: =TEXT([1]Frontal!$B$3:$B$165,"MMMM") -> janvier | E20: =TEXT([1]Frontal!$B$3:$B$165,"AAAA") -> 2019 | F20: Vincent. Loquet | G20: =VLOOKUP([1]Frontal!$F20,[1]Liste!A:C,3,0) -> 9978 | H20: Vincent. Loquet | I20: QPN | J20: Frederic Selingue | K20: R100583445 | L20: =VLOOKUP([1]Frontal!$K20,[1]REF!B:C,2,0) -> Parka HV Jaune Taille L | M20: EPI | N20: 10 | O20: =VLOOKUP([1]Frontal!$K20,[1]REF!B:D,3,0) -> 33.69 | P20: 1 | Q20: =[1]Frontal!$P$3:$P$165*[1]Frontal!$O$3:$O$165 -> 33.69 | R20: 2019-01-21 | S20: OK
A21: 19 | B21: 2019-01-21 | C21: 4 | D21: =TEXT([1]Frontal!$B$3:$B$165,"MMMM") -> janvier | E21: =TEXT([1]Frontal!$B$3:$B$165,"AAAA") -> 2019 | F21: Vincent. Loquet | G21: =VLOOKUP([1]Frontal!$F21,[1]Liste!A:C,3,0) -> 9978 | H21: Vincent. Loquet | I21: QPN | J21: Pascal Leclercq | K21: R100583445 | L21: =VLOOKUP([1]Frontal!$K21,[1]REF!B:C,2,0) -> Parka HV Jaune Taille L | M21: EPI | N21: 10 | O21: =VLOOKUP([1]Frontal!$K21,[1]REF!B:D,3,0) -> 33.69 | P21: 1 | Q21: =[1]Frontal!$P$3:$P$165*[1]Frontal!$O$3:$O$165 -> 33.69 | R21: 2019-01-21 | S21: OK
A22: 20 | B22: 2019-01-21 | C22: 4 | D22: =TEXT([1]Frontal!$B$3:$B$165,"MMMM") -> janvier | E22: =TEXT([1]Frontal!$B$3:$B$165,"AAAA") -> 2019 | F22: Vincent. Loquet | G22: =VLOOKUP([1]Frontal!$F22,[1]Liste!A:C,3,0) -> 9978 | H22: Vincent. Loquet | I22: QPN | J22: Christian Carette | K22: R100583448 | L22: =VLOOKUP([1]Frontal!$K22,[1]REF!B:C,2,0) -> Parka HV Jaune Taille XXXL | M22: EPI | N22: 10 | O22: =VLOOKUP([1]Frontal!$K22,[1]REF!B:D,3,0) -> 32 | P22: 1 | Q22: =[1]Frontal!$P$3:$P$165*[1]Frontal!$O$3:$O$165 -> 32 | R22: 2019-01-21 | S22: OK
A23: 21 | B23: 2019-01-21 | C23: 4 | D23: =TEXT([1]Frontal!$B$3:$B$165,"MMMM") -> janvier | E23: =TEXT([1]Frontal!$B$3:$B$165,"AAAA") -> 2019 | F23: Matthieu. Pimont | G23: 9964 | H23: Daniel. Szekula | I23: Métrologie | J23: Max Ducatez | K23: R100601464 | L23: =VLOOKUP([1]Frontal!$K23,[1]REF!B:C,2,0) -> Chaussures H BASSES CUIR FLEUR NOIR HYDROFUGE Taille 45 | M23: EPI | N23: 10 | O23: =VLOOKUP([1]Frontal!$K23,[1]REF!B:D,3,0) -> 20.8 | P23: 1 | Q23: =[1]Frontal!$P$3:$P$165*[1]Frontal!$O$3:$O$165 -> 20.8 | R23: 2019-01-21 | S23: OK
A24: 22 | B24: 2019-01-21 | C24: 4 | D24: =TEXT([1]Frontal!$B$3:$B$165,"MMMM") -> janvier | E24: =TEXT([1]Frontal!$B$3:$B$165,"AAAA") -> 2019 | F24: Matthieu. Pimont | G24: 9964 | H24: Pascal. Steu | I24: G. Bruit | J24: Pascal Steu | K24: R100611739 | L24: =VLOOKUP([1]Frontal!$K24,[1]REF!B:C,2,0) -> Lampe de poche GISS | M24: Outillage | N24: 10 | O24: =VLOOKUP([1]Frontal!$K24,[1]REF!B:D,3,0) -> 14.31 | P24: 4 | Q24: =[1]Frontal!$P$3:$P$165*[1]Frontal!$O$3:$O$165 -> 57.24 | R24: 2019-01-21 | S24: OK
A25: 23 | B25: 2019-01-22 | C25: 4 | D25: =TEXT([1]Frontal!$B$3:$B$165,"MMMM") -> janvier | E25: =TEXT([1]Frontal!$B$3:$B$165,"AAAA") -> 2019 | F25: Vincent. Loquet | G25: =VLOOKUP([1]Frontal!$F25,[1]Liste!A:C,3,0) -> 9978 | H25: Vincent. Loquet | I25: QPN | J25: Vincent. Loquet | K25: R100625298 | L25: =VLOOKUP([1]Frontal!$K25,[1]REF!B:C,2,0) -> Gilet réfléchissant XL | M25: EPI | N25: 10 | O25: =VLOOKUP([1]Frontal!$K25,[1]REF!B:D,3,0) -> 5.77 | P25: 10 | Q25: =[1]Frontal!$P$3:$P$165*[1]Frontal!$O$3:$O$165 -> 57.7 | R25: 2019-01-22 | S25: OK
A26: 24 | B26: 2019-01-22 | C26: 4 | D26: =TEXT([1]Frontal!$B$3:$B$165,"MMMM") -> janvier | E26: =TEXT([1]Frontal!$B$3:$B$165,"AAAA") -> 2019 | F26: Vincent. Loquet | G26: =VLOOKUP([1]Frontal!$F26,[1]Liste!A:C,3,0) -> 9978 | H26: Vincent. Loquet | I26: QPN | J26: Vincent. Loquet | K26: R100625297 | L26: =VLOOKUP([1]Frontal!$K26,[1]REF!B:C,2,0) -> Gilet réfléchissant L | M26: EPI | N26: 10 | O26: =VLOOKUP([1]Frontal!$K26,[1]REF!B:D,3,0) -> 5.77 | P26: 10 | Q26: =[1]Frontal!$P$3:$P$165*[1]Frontal!$O$3:$O$165 -> 57.7 | R26: 2019-01-22 | S26: OK
A27: 25 | B27: 2019-01-22 | C27: 4 | D27: =TEXT([1]Frontal!$B$3:$B$165,"MMMM") -> janvier | E27: =TEXT([1]Frontal!$B$3:$B$165,"AAAA") -> 2019 | F27: Vincent. Loquet | G27: =VLOOKUP([1]Frontal!$F27,[1]Liste!A:C,3,0) -> 9978 | H27: Vincent. Loquet | I27: QPN | J27: Vincent. Loquet | K27: R100625296 | L27: =VLOOKUP([1]Frontal!$K27,[1]REF!B:C,2,0) -> Gilet réfléchissant M | M27: EPI | N27: 10 | O27: =VLOOKUP([1]Frontal!$K27,[1]REF!B:D,3,0) -> 5.77 | P27: 10 | Q27: =[1]Frontal!$P$3:$P$165*[1]Frontal!$O$3:$O$165 -> 57.7 | R27: 2019-01-22 | S27: OK
A28: 26 | B28: 2019-01-22 | C28: 4 | D28: =TEXT([1]Frontal!$B$3:$B$165,"MMMM") -> janvier | E28: =TEXT([1]Frontal!$B$3:$B$165,"AAAA") -> 2019 | F28: Cédric. Longatte | G28: =VLOOKUP([1]Frontal!$F28,[1]Liste!A:C,3,0) -> 9967 | H28: David. Lequeux | I28: CAP | J28: Michael. Defontaine | K28: R100625730 | L28: =VLOOKUP([1]Frontal!$K28,[1]REF!B:C,2,0) -> Chargeur téléphone | M28: Bureautique | N28: 10 | O28: =VLOOKUP([1]Frontal!$K28,[1]REF!B:D,3,0) -> 19.51 | P28: 1 | Q28: =[1]Frontal!$P$3:$P$165*[1]Frontal!$O$3:$O$165 -> 19.51 | R28: 2019-01-22 | S28: OK
A29: 27 | B29: 2019-01-23 | C29: 4 | D29: =TEXT([1]Frontal!$B$3:$B$165,"MMMM") -> janvier | E29: =TEXT([1]Frontal!$B$3:$B$165,"AAAA") -> 2019 | F29: Saida. Benahmina | G29: =VLOOKUP([1]Frontal!$F29,[1]Liste!A:C,3,0) -> 9968 | H29: Saida. Benahmina | I29: Reprographie | J29: Sebastien. Taisne | K29: R100201616 | L29: =VLOOKUP([1]Frontal!$K29,[1]REF!B:C,2,0) -> Chaussures H TOILEES TYPE MOCASSIN Taille 42 | M29: EPI | N29: 10 | O29: =VLOOKUP([1]Frontal!$K29,[1]REF!B:D,3,0) -> 27.2 | P29: 1 | Q29: =[1]Frontal!$P$3:$P$165*[1]Frontal!$O$3:$O$165 -> 27.2 | R29: 2019-01-23 | S29: OK
A30: 28 | B30: 2019-01-24 | C30: 4 | D30: =TEXT([1]Frontal!$B$3:$B$165,"MMMM") -> janvier | E30: =TEXT([1]Frontal!$B$3:$B$165,"AAAA") -> 2019 | F30: Saida. Benahmina | G30: =VLOOKUP([1]Frontal!$F30,[1]Liste!A:C,3,0) -> 9968 | H30: Christine. Tamburri | I30: AQM | J30: Christine. Tamburri | K30: R100155495 | L30: =VLOOKUP([1]Frontal!$K30,[1]REF!B:C,2,0) -> Lampe de poche | M30: Outillage | N30: 10 | O30: =VLOOKUP([1]Frontal!$K30,[1]REF!B:D,3,0) -> 21.7 | P30: 1 | Q30: =[1]Frontal!$P$3:$P$165*[1]Frontal!$O$3:$O$165 -> 21.7 | R30: 2019-01-24 | S30: OK
A31: 29 | B31: 2019-01-24 | C31: 4 | D31: =TEXT([1]Frontal!$B$3:$B$165,"MMMM") -> janvier | E31: =TEXT([1]Frontal!$B$3:$B$165,"AAAA") -> 2019 | F31: Saida. Benahmina | G31: =VLOOKUP([1]Frontal!$F31,[1]Liste!A:C,3,0) -> 9968 | H31: Christine. Tamburri | I31: AQM | J31: Christine. Tamburri | K31: R100582895 | L31: =VLOOKUP([1]Frontal!$K31,[1]REF!B:C,2,0) -> casquette de sécurité | M31: EPI | N31: 10 | O31: =VLOOKUP([1]Frontal!$K31,[1]REF!B:D,3,0) -> 16.82 | P31: 2 | Q31: =[1]Frontal!$P$3:$P$165*[1]Frontal!$O$3:$O$165 -> 33.64 | R31: 2019-01-24 | S31: OK
A32: 30 | B32: 2019-01-24 | C32: 4 | D32: =TEXT([1]Frontal!$B$3:$B$165,"MMMM") -> janvier | E32: =TEXT([1]Frontal!$B$3:$B$165,"AAAA") -> 2019 | F32: Saida. Benahmina | G32: =VLOOKUP([1]Frontal!$F32,[1]Liste!A:C,3,0) -> 9968 | H32: Christian. Kaliszewski | I32: Bloqueur | J32: Christian. Kaliszewski | K32: R100601464 | L32: =VLOOKUP([1]Frontal!$K32,[1]REF!B:C,2,0) -> Chaussures H BASSES CUIR FLEUR NOIR HYDROFUGE Taille 45 | M32: EPI | N32: 10 | O32: =VLOOKUP([1]Frontal!$K32,[1]REF!B:D,3,0) -> 20.8 | P32: 1 | Q32: =[1]Frontal!$P$3:$P$165*[1]Frontal!$O$3:$O$165 -> 20.8 | R32: 2019-01-24 | S32: OK
A33: 31 | B33: 2019-01-25 | C33: 4 | D33: =TEXT([1]Frontal!$B$3:$B$165,"MMMM") -> janvier | E33: =TEXT([1]Frontal!$B$3:$B$165,"AAAA") -> 2019 | F33: Saida. Benahmina | G33: =VLOOKUP([1]Frontal!$F33,[1]Liste!A:C,3,0) -> 9968 | H33: Cindy. Thorez | I33: CSC | J33: Cindy. Thorez | K33: X951506719 | L33: =VLOOKUP([1]Frontal!$K33,[1]REF!B:C,2,0) -> Bouchon D'oreille Arceaux | M33: EPI | N33: 10 | O33: =VLOOKUP([1]Frontal!$K33,[1]REF!B:D,3,0) -> 2.4 | P33: 10 | Q33: =[1]Frontal!$P$3:$P$165*[1]Frontal!$O$3:$O$165 -> 24 | R33: 2019-01-25 | S33: OK
A34: 32 | B34: 2019-01-25 | C34: 4 | D34: =TEXT([1]Frontal!$B$3:$B$165,"MMMM") -> janvier | E34: =TEXT([1]Frontal!$B$3:$B$165,"AAAA") -> 2019 | F34: Saida. Benahmina | G34: =VLOOKUP([1]Frontal!$F34,[1]Liste!A:C,3,0) -> 9968 | H34: Christian. Kaliszewski | I34: Bloqueur | J34: Christian. Kaliszewski | K34: T533011200 | L34: =VLOOKUP([1]Frontal!$K34,[1]REF!B:C,2,0) -> Ruban Adhésif | M34: Consommable | N34: 10 | O34: =VLOOKUP([1]Frontal!$K34,[1]REF!B:D,3,0) -> 0.59 | P34: 100 | Q34: =[1]Frontal!$P$3:$P$165*[1]Frontal!$O$3:$O$165 -> 59 | R34: 2019-01-25 | S34: OK
A35: 33 | B35: 2019-01-25 | C35: 4 | D35: =TEXT([1]Frontal!$B$3:$B$165,"MMMM") -> janvier | E35: =TEXT([1]Frontal!$B$3:$B$165,"AAAA") -> 2019 | F35: Saida. Benahmina | G35: =VLOOKUP([1]Frontal!$F35,[1]Liste!A:C,3,0) -> 9968 | H35: Christian. Kaliszewski | I35: Bloqueur | J35: Christian. Kaliszewski | K35: 4939031056 | L35: =VLOOKUP([1]Frontal!$K35,[1]REF!B:C,2,0) -> Pastilles adhésives ovales JAUNE | M35: Consommable | N35: 10 | O35: =VLOOKUP([1]Frontal!$K35,[1]REF!B:D,3,0) -> 8.09 | P35: 5 | Q35: =[1]Frontal!$P$3:$P$165*[1]Frontal!$O$3:$O$165 -> 40.45 | R35: 2019-01-25 | S35: OK
A36: 34 | B36: 2019-01-28 | C36: 5 | D36: =TEXT([1]Frontal!$B$3:$B$165,"MMMM") -> janvier | E36: =TEXT([1]Frontal!$B$3:$B$165,"AAAA") -> 2019 | F36: Saida. Benahmina | G36: =VLOOKUP([1]Frontal!$F36,[1]Liste!A:C,3,0) -> 9968 | H36: Christine. Tamburri | I36: AQM | J36: Laurence.Marquette | K36: R100518519 | L36: =VLOOKUP([1]Frontal!$K36,[1]REF!B:C,2,0) -> Chaussures F MONTANTES CUIR FLEUR NOIR Taille 40 | M36: EPI | N36: 10 | O36: =VLOOKUP([1]Frontal!$K36,[1]REF!B:D,3,0) -> 42.13 | P36: 1 | Q36: =[1]Frontal!$P$3:$P$165*[1]Frontal!$O$3:$O$165 -> 42.13 | R36: 2019-01-29 | S36: OK
A37: 35 | B37: 2019-01-28 | C37: 5 | D37: =TEXT([1]Frontal!$B$3:$B$165,"MMMM") -> janvier | E37: =TEXT([1]Frontal!$B$3:$B$165,"AAAA") -> 2019 | F37: Cédric. Longatte | G37: =VLOOKUP([1]Frontal!$F37,[1]Liste!A:C,3,0) -> 9967 | H37: David. Lequeux | I37: CAP | J37: Michael. Defontaine | K37: R100666592 | L37: =VLOOKUP([1]Frontal!$K37,[1]REF!B:C,2,0) -> Lunette Sécurité | M37: EPI | N37: 10 | O37: =VLOOKUP([1]Frontal!$K37,[1]REF!B:D,3,0) -> 3 | P37: 1 | Q37: =[1]Frontal!$P$3:$P$165*[1]Frontal!$O$3:$O$165 -> 3 | R37: 2019-01-28 | S37: OK
A38: 36 | B38: 2019-01-28 | C38: 5 | D38: =TEXT([1]Frontal!$B$3:$B$165,"MMMM") -> janvier | E38: =TEXT([1]Frontal!$B$3:$B$165,"AAAA") -> 2019 | F38: Saida. Benahmina | G38: =VLOOKUP([1]Frontal!$F38,[1]Liste!A:C,3,0) -> 9968 | H38: Cindy. Thorez | I38: CSC | J38: Cindy.Thorez | K38: R100646629 | L38: =VLOOKUP([1]Frontal!$K38,[1]REF!B:C,2,0) -> PAIRE GANTS T7 MASTIC laine blanc liseré Jaune | M38: EPI | N38: 10 | O38: =VLOOKUP([1]Frontal!$K38,[1]REF!B:D,3,0) -> 0.6 | P38: 300 | Q38: =[1]Frontal!$P$3:$P$165*[1]Frontal!$O$3:$O$165 -> 180 | R38: 2019-01-28 | S38: OK
A39: 37 | B39: 2019-01-29 | C39: 5 | D39: =TEXT([1]Frontal!$B$3:$B$165,"MMMM") -> janvier | E39: =TEXT([1]Frontal!$B$3:$B$165,"AAAA") -> 2019 | F39: Saida. Benahmina | G39: =VLOOKUP([1]Frontal!$F39,[1]Liste!A:C,3,0) -> 9968 | H39: Cindy. Thorez | I39: CSC | J39: Fabrice. Bielanwski | K39: R100601454 | L39: =VLOOKUP([1]Frontal!$K39,[1]REF!B:C,2,0) -> Chaussures H BASSES CUIR FLEUR NOIR HYDROFUGE Taille 42 | M39: EPI | N39: 10 | O39: =VLOOKUP([1]Frontal!$K39,[1]REF!B:D,3,0) -> 20.8 | P39: 1 | Q39: =[1]Frontal!$P$3:$P$165*[1]Frontal!$O$3:$O$165 -> 20.8 | R39: 2019-01-29 | S39: OK
A40: 38 | B40: 2019-01-29 | C40: 5 | D40: =TEXT([1]Frontal!$B$3:$B$165,"MMMM") -> janvier | E40: =TEXT([1]Frontal!$B$3:$B$165,"AAAA") -> 2019 | F40: Saida. Benahmina | G40: =VLOOKUP([1]Frontal!$F40,[1]Liste!A:C,3,0) -> 9968 | H40: Cindy. Thorez | I40: CSC | J40: Angélique. Ego | K40: R100549970 | L40: =VLOOKUP([1]Frontal!$K40,[1]REF!B:C,2,0) -> Chaussures FEMME OPERATEUR ET VILLE CUIR NUBUCK Taille 38 | M40: EPI | N40: 10 | O40: =VLOOKUP([1]Frontal!$K40,[1]REF!B:D,3,0) -> 40.89 | P40: 1 | Q40: =[1]Frontal!$P$3:$P$165*[1]Frontal!$O$3:$O$165 -> 40.89 | R40: 2019-01-29 | S40: OK
A41: 39 | B41: 2019-01-29 | C41: 5 | D41: =TEXT([1]Frontal!$B$3:$B$165,"MMMM") -> janvier | E41: =TEXT([1]Frontal!$B$3:$B$165,"AAAA") -> 2019 | F41: Saida. Benahmina | G41: =VLOOKUP([1]Frontal!$F41,[1]Liste!A:C,3,0) -> 9968 | H41: Cindy. Thorez | I41: CSC | J41: Cindy. Hailler | K41: R100549968 | L41: =VLOOKUP([1]Frontal!$K41,[1]REF!B:C,2,0) -> Chaussures FEMME OPERATEUR ET VILLE CUIR NUBUCK Taille 36 | M41: EPI | N41: 10 | O41: =VLOOKUP([1]Frontal!$K41,[1]REF!B:D,3,0) -> 40.89 | P41: 1 | Q41: =[1]Frontal!$P$3:$P$165*[1]Frontal!$O$3:$O$165 -> 40.89 | R41: 2019-01-29 | S41: OK
A42: 40 | B42: 2019-01-29 | C42: 5 | D42: =TEXT([1]Frontal!$B$3:$B$165,"MMMM") -> janvier | E42: =TEXT([1]Frontal!$B$3:$B$165,"AAAA") -> 2019 | F42: Saida. Benahmina | G42: =VLOOKUP([1]Frontal!$F42,[1]Liste!A:C,3,0) -> 9968 | H42: Christine. Tamburri | I42: AQM | J42: Christine. Tamburri | K42: R100646629 | L42: =VLOOKUP([1]Frontal!$K42,[1]REF!B:C,2,0) -> PAIRE GANTS T7 MASTIC laine blanc liseré Jaune | M42: EPI | N42: 10 | O42: =VLOOKUP([1]Frontal!$K42,[1]REF!B:D,3,0) -> 0.6 | P42: 100 | Q42: =[1]Frontal!$P$3:$P$165*[1]Frontal!$O$3:$O$165 -> 60 | R42: 2019-01-29 | S42: OK
A43: 41 | B43: 2019-01-29 | C43: 5 | D43: =TEXT([1]Frontal!$B$3:$B$165,"MMMM") -> janvier | E43: =TEXT([1]Frontal!$B$3:$B$165,"AAAA") -> 2019 | F43: Saida. Benahmina | G43: =VLOOKUP([1]Frontal!$F43,[1]Liste!A:C,3,0) -> 9968 | H43: Francois. Hanne | I43: AQM | J43: Francois Hanne | K43: R100611739 | L43: =VLOOKUP([1]Frontal!$K43,[1]REF!B:C,2,0) -> Lampe de poche GISS | M43: Consommable | N43: 10 | O43: =VLOOKUP([1]Frontal!$K43,[1]REF!B:D,3,0) -> 14.31 | P43: 2 | Q43: =[1]Frontal!$P$3:$P$165*[1]Frontal!$O$3:$O$165 -> 28.62 | R43: 2019-01-29 | S43: OK
A44: 42 | B44: 2019-01-30 | C44: 5 | D44: =TEXT([1]Frontal!$B$3:$B$165,"MMMM") -> janvier | E44: =TEXT([1]Frontal!$B$3:$B$165,"AAAA") -> 2019 | F44: Vincent. Loquet | G44: =VLOOKUP([1]Frontal!$F44,[1]Liste!A:C,3,0) -> 9978 | H44: Vincent. Loquet | I44: QPN | J44: Vincent. Loquet | K44: R100212363 | L44: =VLOOKUP([1]Frontal!$K44,[1]REF!B:C,2,0) -> CADENAS LAITON MASSIF 40MM H:63MM EP:14 | M44: Quincaillerie | N44: 10 | O44: =VLOOKUP([1]Frontal!$K44,[1]REF!B:D,3,0) -> 3.73 | P44: 1 | Q44: =[1]Frontal!$P$3:$P$165*[1]Frontal!$O$3:$O$165 -> 3.73 | R44: 2019-01-30 | S44: OK
A45: 43 | B45: 2019-01-30 | C45: 5 | D45: =TEXT([1]Frontal!$B$3:$B$165,"MMMM") -> janvier | E45: =TEXT([1]Frontal!$B$3:$B$165,"AAAA") -> 2019 | F45: Matthieu. Pimont | G45: 9964 | H45: Christophe. Mikolaczak | I45: Métrologie | J45: Christophe. Mikolaczak | K45: R000111100 | L45: =VLOOKUP([1]Frontal!$K45,[1]REF!B:C,2,0) -> Piles LR06 | M45: Quincaillerie | N45: 10 | O45: =VLOOKUP([1]Frontal!$K45,[1]REF!B:D,3,0) -> 0.155 | P45: 10 | Q45: =[1]Frontal!$P$3:$P$165*[1]Frontal!$O$3:$O$165 -> 1.55 | R45: 2019-01-30 | S45: OK
A46: 44 | B46: 2019-01-31 | C46: 5 | D46: =TEXT([1]Frontal!$B$3:$B$165,"MMMM") -> janvier | E46: =TEXT([1]Frontal!$B$3:$B$165,"AAAA") -> 2019 | F46: Saida. Benahmina | G46: =VLOOKUP([1]Frontal!$F46,[1]Liste!A:C,3,0) -> 9968 | H46: Fabrice. Richard | I46: CSC | J46: Huret.Betty | K46: R100518519 | L46: =VLOOKUP([1]Frontal!$K46,[1]REF!B:C,2,0) -> Chaussures F MONTANTES CUIR FLEUR NOIR Taille 40 | M46: EPI | N46: 10 | O46: =VLOOKUP([1]Frontal!$K46,[1]REF!B:D,3,0) -> 42.13 | P46: 1 | Q46: =[1]Frontal!$P$3:$P$165*[1]Frontal!$O$3:$O$165 -> 42.13 | R46: 2019-02-08 | S46: OK
A47: 45 | B47: 2019-01-31 | C47: 5 | D47: =TEXT([1]Frontal!$B$3:$B$165,"MMMM") -> janvier | E47: =TEXT([1]Frontal!$B$3:$B$165,"AAAA") -> 2019 | F47: Cédric. Longatte | G47: =VLOOKUP([1]Frontal!$F47,[1]Liste!A:C,3,0) -> 9967 | H47: Michael. Defontaine | I47: CAP | J47: Guillaume. Delomel | K47: R100518645 | L47: =VLOOKUP([1]Frontal!$K47,[1]REF!B:C,2,0) -> Chaussures TYPE BASKET H CUIR VELOURS PERFORE Taille 40 | M47: EPI | N47: 10 | O47: =VLOOKUP([1]Frontal!$K47,[1]REF!B:D,3,0) -> 26.59 | P47: 1 | Q47: =[1]Frontal!$P$3:$P$165*[1]Frontal!$O$3:$O$165 -> 26.59 | R47: 2019-01-31 | S47: OK
A48: 46 | B48: 2019-01-31 | C48: 5 | D48: =TEXT([1]Frontal!$B$3:$B$165,"MMMM") -> janvier | E48: =TEXT([1]Frontal!$B$3:$B$165,"AAAA") -> 2019 | F48: Matthieu. Pimont | G48: 9964 | H48: Pascal. Steu | I48: G. Bruit | J48: Pegg. D-HELFT | K48: R100527919 | L48: =VLOOKUP([1]Frontal!$K48,[1]REF!B:C,2,0) -> Chaussures FEMME OPERATEUR ET VILLE CUIR PLEINE FLEUR Taille 40 | M48: EPI | N48: 10 | O48: =VLOOKUP([1]Frontal!$K48,[1]REF!B:D,3,0) -> 38.44 | P48: 1 | Q48: =[1]Frontal!$P$3:$P$165*[1]Frontal!$O$3:$O$165 -> 38.44 | R48: 2019-01-31 | S48: OK
A49: 47 | B49: 2019-02-01 | C49: 5 | D49: =TEXT([1]Frontal!$B$3:$B$165,"MMMM") -> février | E49: =TEXT([1]Frontal!$B$3:$B$165,"AAAA") -> 2019 | F49: Saida. Benahmina | G49: =VLOOKUP([1]Frontal!$F49,[1]Liste!A:C,3,0) -> 9968 | H49: Olivier. Foulon | I49: PLS | J49: Olivier. Foulon | K49: R000111100 | L49: =VLOOKUP([1]Frontal!$K49,[1]REF!B:C,2,0) -> Piles LR06 | M49: Consommable | N49: 10 | O49: =VLOOKUP([1]Frontal!$K49,[1]REF!B:D,3,0) -> 0.155 | P49: 20 | Q49: =[1]Frontal!$P$3:$P$165*[1]Frontal!$O$3:$O$165 -> 3.1 | R49: 2019-02-01 | S49: OK
A50: 48 | B50: 2019-02-04 | C50: 6 | D50: =TEXT([1]Frontal!$B$3:$B$165,"MMMM") -> février | E50: =TEXT([1]Frontal!$B$3:$B$165,"AAAA") -> 2019 | F50: Saida. Benahmina | G50: =VLOOKUP([1]Frontal!$F50,[1]Liste!A:C,3,0) -> 9968 | H50: Cindy. Thorez | I50: CSC | J50: Cindy.Thorez | K50: E139000222 | L50: =VLOOKUP([1]Frontal!$K50,[1]REF!B:C,2,0) -> Jeu de Cales 1 à 6 Mm | M50: Outillage | N50: 10 | O50: =VLOOKUP([1]Frontal!$K50,[1]REF!B:D,3,0) -> 44.5 | P50: 2 | Q50: =[1]Frontal!$P$3:$P$165*[1]Frontal!$O$3:$O$165 -> 89 | R50: 2019-02-04 | S50: OK
A51: 49 | B51: 2019-02-04 | C51: 6 | D51: =TEXT([1]Frontal!$B$3:$B$165,"MMMM") -> février | E51: =TEXT([1]Frontal!$B$3:$B$165,"AAAA") -> 2019 | F51: Saida. Benahmina | G51: =VLOOKUP([1]Frontal!$F51,[1]Liste!A:C,3,0) -> 9968 | H51: Francois. Hanne | I51: AQM | J51: Francois. Hanne | K51: R100625728 | L51: =VLOOKUP([1]Frontal!$K51,[1]REF!B:C,2,0) -> Telephone | M51: Informatique | N51: 10 | O51: =VLOOKUP([1]Frontal!$K51,[1]REF!B:D,3,0) -> 90.57 | P51: 1 | Q51: =[1]Frontal!$P$3:$P$165*[1]Frontal!$O$3:$O$165 -> 90.57 | R51: 2019-02-04 | S51: OK
A52: 50 | B52: 2019-02-04 | C52: 6 | D52: =TEXT([1]Frontal!$B$3:$B$165,"MMMM") -> février | E52: =TEXT([1]Frontal!$B$3:$B$165,"AAAA") -> 2019 | F52: Saida. Benahmina | G52: =VLOOKUP([1]Frontal!$F52,[1]Liste!A:C,3,0) -> 9968 | H52: Christian. Kaliszewski | I52: Bloqueur | J52: Christian. Kaliszewski | K52: R000111100 | L52: =VLOOKUP([1]Frontal!$K52,[1]REF!B:C,2,0) -> Piles LR06 | M52: Consommable | N52: 10 | O52: =VLOOKUP([1]Frontal!$K52,[1]REF!B:D,3,0) -> 0.155 | P52: 1 | Q52: =[1]Frontal!$P$3:$P$165*[1]Frontal!$O$3:$O$165 -> 0.155 | R52: 2019-02-04 | S52: OK
A53: 51 | B53: 2019-02-05 | C53: 6 | D53: =TEXT([1]Frontal!$B$3:$B$165,"MMMM") -> février | E53: =TEXT([1]Frontal!$B$3:$B$165,"AAAA") -> 2019 | F53: Saida. Benahmina | G53: =VLOOKUP([1]Frontal!$F53,[1]Liste!A:C,3,0) -> 9968 | H53: Francois. Hanne | I53: AQM | J53: Francois. Hanne | K53: R000111100 | L53: =VLOOKUP([1]Frontal!$K53,[1]REF!B:C,2,0) -> Piles LR06 | M53: Consommable | N53: 10 | O53: =VLOOKUP([1]Frontal!$K53,[1]REF!B:D,3,0) -> 0.155 | P53: 10 | Q53: =[1]Frontal!$P$3:$P$165*[1]Frontal!$O$3:$O$165 -> 1.55 | R53: 2019-02-05 | S53: OK
A54: 52 | B54: 2019-02-05 | C54: 6 | D54: =TEXT([1]Frontal!$B$3:$B$165,"MMMM") -> février | E54: =TEXT([1]Frontal!$B$3:$B$165,"AAAA") -> 2019 | F54: Saida. Benahmina | G54: =VLOOKUP([1]Frontal!$F54,[1]Liste!A:C,3,0) -> 9968 | H54: Daniel. Jouy | I54: Bloqueur | J54: Daniel. Jouy | K54: R000111100 | L54: =VLOOKUP([1]Frontal!$K54,[1]REF!B:C,2,0) -> Piles LR06 | M54: Consommable | N54: 10 | O54: =VLOOKUP([1]Frontal!$K54,[1]REF!B:D,3,0) -> 0.155 | P54: 4 | Q54: =[1]Frontal!$P$3:$P$165*[1]Frontal!$O$3:$O$165 -> 0.62 | R54: 2019-02-05 | S54: OK
A55: 53 | B55: 2019-02-05 | C55: 6 | D55: =TEXT([1]Frontal!$B$3:$B$165,"MMMM") -> février | E55: =TEXT([1]Frontal!$B$3:$B$165,"AAAA") -> 2019 | F55: Saida. Benahmina | G55: =VLOOKUP([1]Frontal!$F55,[1]Liste!A:C,3,0) -> 9968 | H55: Christian. Kaliszewski | I55: Bloqueur | J55: Christian. Kaliszewski | K55: R100330333 | L55: =VLOOKUP([1]Frontal!$K55,[1]REF!B:C,2,0) -> CLAVIER AZERTY HP NOIR/SILVER- USB | M55: Bureautique | N55: 10 | O55: =VLOOKUP([1]Frontal!$K55,[1]REF!B:D,3,0) -> 12.18 | P55: 1 | Q55: =[1]Frontal!$P$3:$P$165*[1]Frontal!$O$3:$O$165 -> 12.18 | R55: 2019-02-06 | S55: OK
A56: 54 | B56: 2019-02-06 | C56: 6 | D56: =TEXT([1]Frontal!$B$3:$B$165,"MMMM") -> février | E56: =TEXT([1]Frontal!$B$3:$B$165,"AAAA") -> 2019 | F56: Saida. Benahmina | G56: =VLOOKUP([1]Frontal!$F56,[1]Liste!A:C,3,0) -> 9968 | H56: Saida. Benahmina | I56: PLS | J56: Olivier. Foulon | K56: X771101008 | L56: =VLOOKUP([1]Frontal!$K56,[1]REF!B:C,2,0) -> Piles LR03 | M56: Consommable | N56: 10 | O56: =VLOOKUP([1]Frontal!$K56,[1]REF!B:D,3,0) -> 0.124 | P56: 10 | Q56: =[1]Frontal!$P$3:$P$165*[1]Frontal!$O$3:$O$165 -> 1.24 | R56: 2019-02-06 | S56: OK
A57: 55 | B57: 2019-02-07 | C57: 6 | D57: =TEXT([1]Frontal!$B$3:$B$165,"MMMM") -> février | E57: =TEXT([1]Frontal!$B$3:$B$165,"AAAA") -> 2019 | F57: Vincent. Loquet | G57: =VLOOKUP([1]Frontal!$F57,[1]Liste!A:C,3,0) -> 9978 | H57: Vincent. Loquet | I57: QPN | J57: Vincent. Loquet | K57: X957595004 | L57: =VLOOKUP([1]Frontal!$K57,[1]REF!B:C,2,0) -> Semelle T43 | M57: Consommable | N57: 10 | O57: =VLOOKUP([1]Frontal!$K57,[1]REF!B:D,3,0) -> 0.64 | P57: 5 | Q57: =[1]Frontal!$P$3:$P$165*[1]Frontal!$O$3:$O$165 -> 3.2 | R57: 2019-02-07 | S57: OK
A58: 56 | B58: 2019-02-07 | C58: 6 | D58: =TEXT([1]Frontal!$B$3:$B$165,"MMMM") -> février | E58: =TEXT([1]Frontal!$B$3:$B$165,"AAAA") -> 2019 | F58: Saida. Benahmina | G58: =VLOOKUP([1]Frontal!$F58,[1]Liste!A:C,3,0) -> 9968 | H58: Christine. Tamburri | I58: AQM | J58: Christine. Tamburri | K58: E139000222 | L58: =VLOOKUP([1]Frontal!$K58,[1]REF!B:C,2,0) -> Jeu de Cales 1 à 6 Mm | M58: DO | N58: 10 | O58: =VLOOKUP([1]Frontal!$K58,[1]REF!B:D,3,0) -> 44.5 | P58: 1 | Q58: =[1]Frontal!$P$3:$P$165*[1]Frontal!$O$3:$O$165 -> 44.5 | R58: 2019-02-07 | S58: OK
A59: 57 | B59: 2019-02-08 | C59: 6 | D59: =TEXT([1]Frontal!$B$3:$B$165,"MMMM") -> février | E59: =TEXT([1]Frontal!$B$3:$B$165,"AAAA") -> 2019 | F59: Saida. Benahmina | G59: =VLOOKUP([1]Frontal!$F59,[1]Liste!A:C,3,0) -> 9968 | H59: Francois. Hanne | I59: AQM | J59: Francois. Hanne | K59: X771101008 | L59: =VLOOKUP([1]Frontal!$K59,[1]REF!B:C,2,0) -> Piles LR03 | M59: Consommable | N59: 10 | O59: =VLOOKUP([1]Frontal!$K59,[1]REF!B:D,3,0) -> 0.124 | P59: 30 | Q59: =[1]Frontal!$P$3:$P$165*[1]Frontal!$O$3:$O$165 -> 3.72 | R59: 2019-02-08 | S59: OK
A60: 58 | B60: 2019-02-08 | C60: 6 | D60: =TEXT([1]Frontal!$B$3:$B$165,"MMMM") -> février | E60: =TEXT([1]Frontal!$B$3:$B$165,"AAAA") -> 2019 | F60: Saida. Benahmina | G60: =VLOOKUP([1]Frontal!$F60,[1]Liste!A:C,3,0) -> 9968 | H60: Francois. Hanne | I60: AQM | J60: Francois. Hanne | K60: R000111100 | L60: =VLOOKUP([1]Frontal!$K60,[1]REF!B:C,2,0) -> Piles LR06 | M60: Consommable | N60: 10 | O60: =VLOOKUP([1]Frontal!$K60,[1]REF!B:D,3,0) -> 0.155 | P60: 30 | Q60: =[1]Frontal!$P$3:$P$165*[1]Frontal!$O$3:$O$165 -> 4.65 | R60: 2019-02-08 | S60: OK
A61: 59 | B61: 2019-02-12 | C61: 7 | D61: =TEXT([1]Frontal!$B$3:$B$165,"MMMM") -> février | E61: =TEXT([1]Frontal!$B$3:$B$165,"AAAA") -> 2019 | F61: Aka.Amany. Patrice | G61: =VLOOKUP([1]Frontal!$F61,[1]Liste!A:C,3,0) -> 9962 | H61: Aka.Amany. Patrice | I61: EPF | J61: Aka.Amany. Patrice | K61: R100583445 | L61: =VLOOKUP([1]Frontal!$K61,[1]REF!B:C,2,0) -> Parka HV Jaune Taille L | M61: EPI | N61: 10 | O61: =VLOOKUP([1]Frontal!$K61,[1]REF!B:D,3,0) -> 33.69 | P61: 1 | Q61: =[1]Frontal!$P$3:$P$165*[1]Frontal!$O$3:$O$165 -> 33.69 | R61: 2019-02-12 | S61: OK
A62: 60 | B62: 2019-02-12 | C62: 7 | D62: =TEXT([1]Frontal!$B$3:$B$165,"MMMM") -> février | E62: =TEXT([1]Frontal!$B$3:$B$165,"AAAA") -> 2019 | F62: Aka.Amany. Patrice | G62: =VLOOKUP([1]Frontal!$F62,[1]Liste!A:C,3,0) -> 9962 | H62: Abdelkadder Tayebi | I62: EPF | J62: Abdelkadder Tayebi | K62: R100583445 | L62: =VLOOKUP([1]Frontal!$K62,[1]REF!B:C,2,0) -> Parka HV Jaune Taille L | M62: EPI | N62: 10 | O62: =VLOOKUP([1]Frontal!$K62,[1]REF!B:D,3,0) -> 33.69 | P62: 1 | Q62: =[1]Frontal!$P$3:$P$165*[1]Frontal!$O$3:$O$165 -> 33.69 | R62: 2019-02-12 | S62: OK
A63: 61 | B63: 2019-02-12 | C63: 7 | D63: =TEXT([1]Frontal!$B$3:$B$165,"MMMM") -> février | E63: =TEXT([1]Frontal!$B$3:$B$165,"AAAA") -> 2019 | F63: Aka.Amany. Patrice | G63: =VLOOKUP([1]Frontal!$F63,[1]Liste!A:C,3,0) -> 9962 | H63: Caron.Jean-Bernard | I63: EPF | J63: Caron.Jean-Bernard | K63: R100583446 | L63: =VLOOKUP([1]Frontal!$K63,[1]REF!B:C,2,0) -> Parka HV Jaune Taille XL | M63: EPI | N63: 10 | O63: =VLOOKUP([1]Frontal!$K63,[1]REF!B:D,3,0) -> 32.02 | P63: 1 | Q63: =[1]Frontal!$P$3:$P$165*[1]Frontal!$O$3:$O$165 -> 32.02 | R63: 2019-02-12 | S63: OK
A64: 62 | B64: 2019-02-12 | C64: 7 | D64: =TEXT([1]Frontal!$B$3:$B$165,"MMMM") -> février | E64: =TEXT([1]Frontal!$B$3:$B$165,"AAAA") -> 2019 | F64: Saida. Benahmina | G64: =VLOOKUP([1]Frontal!$F64,[1]Liste!A:C,3,0) -> 9968 | H64: Cindy. Thorez | I64: CSC | J64: Cindy. Thorez | K64: P955157073 | L64: =VLOOKUP([1]Frontal!$K64,[1]REF!B:C,2,0) -> Gobelet | M64: Consommable | N64: 10 | O64: =VLOOKUP([1]Frontal!$K64,[1]REF!B:D,3,0) -> 1 | P64: 4 | Q64: =[1]Frontal!$P$3:$P$165*[1]Frontal!$O$3:$O$165 -> 4 | R64: 2019-02-12 | S64: OK
A65: 63 | B65: 2019-02-12 | C65: 7 | D65: =TEXT([1]Frontal!$B$3:$B$165,"MMMM") -> février | E65: =TEXT([1]Frontal!$B$3:$B$165,"AAAA") -> 2019 | F65: Matthieu. Pimont | G65: 9964 | H65: Daniel. Szekula | I65: Métrologie | J65: Daniel. Szekula | K65: P976730900 | L65: =VLOOKUP([1]Frontal!$K65,[1]REF!B:C,2,0) -> Agitateur ou cuillère | M65: Consommable | N65: 10 | O65: =VLOOKUP([1]Frontal!$K65,[1]REF!B:D,3,0) -> 10 | P65: 1 | Q65: =[1]Frontal!$P$3:$P$165*[1]Frontal!$O$3:$O$165 -> 10 | R65: 2019-02-12 | S65: OK
A66: 64 | B66: 2019-02-12 | C66: 7 | D66: =TEXT([1]Frontal!$B$3:$B$165,"MMMM") -> février | E66: =TEXT([1]Frontal!$B$3:$B$165,"AAAA") -> 2019 | F66: Matthieu. Pimont | G66: 9964 | H66: Daniel. Szekula | I66: Métrologie | J66: Daniel. Szekula | K66: R100090222 | L66: =VLOOKUP([1]Frontal!$K66,[1]REF!B:C,2,0) -> Essuyeurs.Kimwipes | M66: Consommable | N66: 10 | O66: =VLOOKUP([1]Frontal!$K66,[1]REF!B:D,3,0) -> 40.45 | P66: 1 | Q66: =[1]Frontal!$P$3:$P$165*[1]Frontal!$O$3:$O$165 -> 40.45 | R66: 2019-02-12 | S66: OK
A67: 65 | B67: 2019-02-12 | C67: =WEEKNUM($B67,2)-(WEEKDAY(DATE(YEAR(B67),1,4),2)<4)*1 -> 7 | D67: =TEXT([1]Frontal!$B$3:$B$165,"MMMM") -> février | E67: =TEXT([1]Frontal!$B$3:$B$165,"AAAA") -> 2019 | F67: Vincent. Loquet | G67: =VLOOKUP([1]Frontal!$F67,[1]Liste!A:C,3,0) -> 9978 | H67: Vincent. Loquet | I67: QPN | J67: Vincent. Loquet | K67: R100341937 | L67: =VLOOKUP([1]Frontal!$K67,[1]REF!B:C,2,0) -> PAIRE GANTS T10 POLYAMIDE MOUSSE DE NITRILE BLANC | M67: EPI | N67: =LEN(K67) -> 10 | O67: =VLOOKUP([1]Frontal!$K67,[1]REF!B:D,3,0) -> 1.06 | P67: 70 | Q67: =[1]Frontal!$P$3:$P$165*[1]Frontal!$O$3:$O$165 -> 74.2 | R67: 2019-02-12 | S67: OK
A68: 66 | B68: 2019-02-12 | C68: 7 | D68: =TEXT([1]Frontal!$B$3:$B$165,"MMMM") -> février | E68: =TEXT([1]Frontal!$B$3:$B$165,"AAAA") -> 2019 | F68: Vincent. Loquet | G68: =VLOOKUP([1]Frontal!$F68,[1]Liste!A:C,3,0) -> 9978 | H68: Vincent. Loquet | I68: QPN | J68: Vincent. Loquet | K68: R100341934 | L68: =VLOOKUP([1]Frontal!$K68,[1]REF!B:C,2,0) -> PAIRE GANTS T8 POLYAMIDE MOUSSE DE NITRILE BLEU | M68: EPI | N68: 10 | O68: =VLOOKUP([1]Frontal!$K68,[1]REF!B:D,3,0) -> 1.07 | P68: 50 | Q68: =[1]Frontal!$P$3:$P$165*[1]Frontal!$O$3:$O$165 -> 53.5 | R68: 2019-02-12 | S68: =IF(R68,"OK","NOK") -> OK
A69: 67 | B69: 2019-02-12 | C69: 7 | D69: =TEXT([1]Frontal!$B$3:$B$165,"MMMM") -> février | E69: =TEXT([1]Frontal!$B$3:$B$165,"AAAA") -> 2019 | F69: Saida. Benahmina | G69: =VLOOKUP([1]Frontal!$F69,[1]Liste!A:C,3,0) -> 9968 | H69: Christine. Tamburri | I69: AQM | J69: Christine. Tamburri | K69: R100646630 | L69: =VLOOKUP([1]Frontal!$K69,[1]REF!B:C,2,0) -> PAIRE GANTS T8 MASTIC ROUGE | M69: EPI | N69: 10 | O69: =VLOOKUP([1]Frontal!$K69,[1]REF!B:D,3,0) -> 0.6 | P69: 200 | Q69: =[1]Frontal!$P$3:$P$165*[1]Frontal!$O$3:$O$165 -> 120 | R69: 2019-02-12 | S69: OK
A70: 68 | B70: 2019-02-13 | C70: 7 | D70: =TEXT([1]Frontal!$B$3:$B$165,"MMMM") -> février | E70: =TEXT([1]Frontal!$B$3:$B$165,"AAAA") -> 2019 | F70: Matthieu. Pimont | G70: =VLOOKUP([1]Frontal!$F70,[1]Liste!A:C,3,0) ->  | H70: Daniel. Szekula | I70: Métrologie | J70: Daniel. Szekula | K70: R100289692 | L70: =VLOOKUP([1]Frontal!$K70,[1]REF!B:C,2,0) -> RUBAN ADHESIF DOUBLE FACE ROUGE | M70: Consommable | N70: 10 | O70: =VLOOKUP([1]Frontal!$K70,[1]REF!B:D,3,0) -> 13.4 | P70: 1 | Q70: =[1]Frontal!$P$3:$P$165*[1]Frontal!$O$3:$O$165 -> 13.4 | R70: 2019-02-13 | S70: OK
A71: 69 | B71: 2019-02-14 | C71: 7 | D71: =TEXT([1]Frontal!$B$3:$B$165,"MMMM") -> février | E71: =TEXT([1]Frontal!$B$3:$B$165,"AAAA") -> 2019 | F71: Saida. Benahmina | G71: =VLOOKUP([1]Frontal!$F71,[1]Liste!A:C,3,0) -> 9968 | H71: Christine. Tamburri | I71: AQM | J71: Christine. Tamburri | K71: R100150296 | L71: =VLOOKUP([1]Frontal!$K71,[1]REF!B:C,2,0) -> PAIRE GANTS T7 TRICOTE 5DGTS 3FILS COTON BLEU | M71: EPI | N71: 10 | O71: =VLOOKUP([1]Frontal!$K71,[1]REF!B:D,3,0) -> 0.27 | P71: 200 | Q71: =[1]Frontal!$P$3:$P$165*[1]Frontal!$O$3:$O$165 -> 54 | R71: 2019-02-14 | S71: OK
A72: 70 | B72: 2019-02-14 | C72: 7 | D72: =TEXT([1]Frontal!$B$3:$B$165,"MMMM") -> février | E72: =TEXT([1]Frontal!$B$3:$B$165,"AAAA") -> 2019 | F72: Vincent. Loquet | G72: =VLOOKUP([1]Frontal!$F72,[1]Liste!A:C,3,0) -> 9978 | H72: Vincent. Loquet | I72: QPN | J72: Vincent. Loquet | K72: R100023101 | L72: =VLOOKUP([1]Frontal!$K72,[1]REF!B:C,2,0) -> PERCEUSE R.ANGLE VARIAT | M72: Outillage | N72: 10 | O72: =VLOOKUP([1]Frontal!$K72,[1]REF!B:D,3,0) -> 166.47 | P72: 1 | Q72: =[1]Frontal!$P$3:$P$165*[1]Frontal!$O$3:$O$165 -> 166.47 | R72: 2019-02-14 | S72: OK
A73: 71 | B73: 2019-02-14 | C73: 7 | D73: =TEXT([1]Frontal!$B$3:$B$165,"MMMM") -> février | E73: =TEXT([1]Frontal!$B$3:$B$165,"AAAA") -> 2019 | F73: Matthieu. Pimont | G73: 9964 | H73: Daniel. Szekula | I73: Métrologie | J73: Sandra Folmer | K73: R100625731 | L73: =VLOOKUP([1]Frontal!$K73,[1]REF!B:C,2,0) -> Alimentation téléphone | M73: Informatique | N73: 10 | O73: =VLOOKUP([1]Frontal!$K73,[1]REF!B:D,3,0) -> 8.31 | P73: 1 | Q73: =[1]Frontal!$P$3:$P$165*[1]Frontal!$O$3:$O$165 -> 8.31 | R73: 2019-02-14 | S73: OK
A74: 72 | B74: 2019-02-14 | C74: 7 | D74: =TEXT([1]Frontal!$B$3:$B$165,"MMMM") -> février | E74: =TEXT([1]Frontal!$B$3:$B$165,"AAAA") -> 2019 | F74: Matthieu. Pimont | G74: 9964 | H74: Daniel. Szekula | I74: Métrologie | J74: Sandra Folmer | K74: R100625730 | L74: =VLOOKUP([1]Frontal!$K74,[1]REF!B:C,2,0) -> Chargeur téléphone | M74: Informatique | N74: 10 | O74: =VLOOKUP([1]Frontal!$K74,[1]REF!B:D,3,0) -> 19.51 | P74: 1 | Q74: =[1]Frontal!$P$3:$P$165*[1]Frontal!$O$3:$O$165 -> 19.51 | R74: 2019-02-14 | S74: OK
A75: 73 | B75: 2019-02-14 | C75: 7 | D75: =TEXT([1]Frontal!$B$3:$B$165,"MMMM") -> février | E75: =TEXT([1]Frontal!$B$3:$B$165,"AAAA") -> 2019 | F75: Matthieu. Pimont | G75: 9964 | H75: Daniel. Szekula | I75: Tracage | J75: Sandra Folmer | K75: R100625728 | L75: =VLOOKUP([1]Frontal!$K75,[1]REF!B:C,2,0) -> Telephone | M75: Informatique | N75: 10 | O75: =VLOOKUP([1]Frontal!$K75,[1]REF!B:D,3,0) -> 90.57 | P75: 1 | Q75: =[1]Frontal!$P$3:$P$165*[1]Frontal!$O$3:$O$165 -> 90.57 | R75: 2019-02-14 | S75: OK
A76: 74 | B76: 2019-02-15 | C76: 7 | D76: =TEXT([1]Frontal!$B$3:$B$165,"MMMM") -> février | E76: =TEXT([1]Frontal!$B$3:$B$165,"AAAA") -> 2019 | F76: Cedric. Longatte | G76: 9964 | H76: Cedric. Longatte | I76: CAP | J76: Cedric. Longatte | K76: R100518606 | L76: =VLOOKUP([1]Frontal!$K76,[1]REF!B:C,2,0) -> Chaussures H BASSES CUIR PLEINE FLEUR DE VACHETTE Taille 43 | M76: EPI | N76: 10 | O76: =VLOOKUP([1]Frontal!$K76,[1]REF!B:D,3,0) -> 43.45 | P76: 1 | Q76: =[1]Frontal!$P$3:$P$165*[1]Frontal!$O$3:$O$165 -> 43.45 | R76: 2019-02-15 | S76: OK
A77: 75 | B77: 2019-02-18 | C77: 8 | D77: =TEXT([1]Frontal!$B$3:$B$165,"MMMM") -> février | E77: =TEXT([1]Frontal!$B$3:$B$165,"AAAA") -> 2019 | F77: Saida. Benahmina | G77: =VLOOKUP([1]Frontal!$F77,[1]Liste!A:C,3,0) -> 9968 | H77: Cindy. Thorez | I77: CSC | J77: Cindy. Thorez | K77: X951506725 | L77: =VLOOKUP([1]Frontal!$K77,[1]REF!B:C,2,0) -> Bouchon D'oreille Ficelle | M77: EPI | N77: 10 | O77: =VLOOKUP([1]Frontal!$K77,[1]REF!B:D,3,0) -> 1.01 | P77: 50 | Q77: =[1]Frontal!$P$3:$P$165*[1]Frontal!$O$3:$O$165 -> 50.5 | R77: 2019-02-18 | S77: OK
A78: 76 | B78: 2019-02-18 | C78: 8 | D78: =TEXT([1]Frontal!$B$3:$B$165,"MMMM") -> février | E78: =TEXT([1]Frontal!$B$3:$B$165,"AAAA") -> 2019 | F78: Matthieu. Pimont | G78: 9964 | H78: Daniel. Szekula | I78: Tracage | J78: Daniel. Szekula | K78: T533200450 | L78: =VLOOKUP([1]Frontal!$K78,[1]REF!B:C,2,0) -> RUBAN ADHESIF PVC PLASTIFIE TRANSPARENT | M78: Consommable | N78: 10 | O78: =VLOOKUP([1]Frontal!$K78,[1]REF!B:D,3,0) -> 1.22 | P78: 10 | Q78: =[1]Frontal!$P$3:$P$165*[1]Frontal!$O$3:$O$165 -> 12.2 | R78: 2019-02-18 | S78: OK
A79: 77 | B79: 2019-02-18 | C79: 8 | D79: =TEXT([1]Frontal!$B$3:$B$165,"MMMM") -> février | E79: =TEXT([1]Frontal!$B$3:$B$165,"AAAA") -> 2019 | F79: Saida. Benahmina | G79: =VLOOKUP([1]Frontal!$F79,[1]Liste!A:C,3,0) -> 9968 | H79: Cindy. Thorez | I79: CSC | J79: Fabienne. Masclet | K79: R100518520 | L79: =VLOOKUP([1]Frontal!$K79,[1]REF!B:C,2,0) -> Chaussures F MONTANTES CUIR FLEUR NOIR Taille 41 | M79: EPI | N79: 10 | O79: =VLOOKUP([1]Frontal!$K79,[1]REF!B:D,3,0) -> 42.13 | P79: 1 | Q79: =[1]Frontal!$P$3:$P$165*[1]Frontal!$O$3:$O$165 -> 42.13 | R79: 2019-02-18 | S79: OK
A80: 78 | B80: 2019-02-18 | C80: 8 | D80: =TEXT([1]Frontal!$B$3:$B$165,"MMMM") -> février | E80: =TEXT([1]Frontal!$B$3:$B$165,"AAAA") -> 2019 | F80: Matthieu. Pimont | G80: 9964 | H80: Pascal. Steu | I80: G. Bruit | J80: Pascal. Steu | K80: R100601454 | L80: =VLOOKUP([1]Frontal!$K80,[1]REF!B:C,2,0) -> Chaussures H BASSES CUIR FLEUR NOIR HYDROFUGE Taille 42 | M80: EPI | N80: 10 | O80: =VLOOKUP([1]Frontal!$K80,[1]REF!B:D,3,0) -> 20.8 | P80: 1 | Q80: =[1]Frontal!$P$3:$P$165*[1]Frontal!$O$3:$O$165 -> 20.8 | R80: 2019-02-18 | S80: OK
A81: 79 | B81: 2019-02-19 | C81: 8 | D81: =TEXT([1]Frontal!$B$3:$B$165,"MMMM") -> février | E81: =TEXT([1]Frontal!$B$3:$B$165,"AAAA") -> 2019 | F81: Matthieu. Pimont | G81: 9964 | H81: Daniel. Szekula | I81: Tracage | J81: Daniel. Szekula | K81: T803900031 | L81: =VLOOKUP([1]Frontal!$K81,[1]REF!B:C,2,0) -> Bombre Visunet néttoyant Ecran | M81: Consommable | N81: 10 | O81: =VLOOKUP([1]Frontal!$K81,[1]REF!B:D,3,0) -> 4.71 | P81: 5 | Q81: =[1]Frontal!$P$3:$P$165*[1]Frontal!$O$3:$O$165 -> 23.55 | R81: 2019-02-19 | S81: OK
A82: 80 | B82: 2019-02-19 | C82: 8 | D82: =TEXT([1]Frontal!$B$3:$B$165,"MMMM") -> février | E82: =TEXT([1]Frontal!$B$3:$B$165,"AAAA") -> 2019 | F82: Matthieu. Pimont | G82: 9964 | H82: Daniel. Szekula | I82: Tracage | J82: Daniel. Szekula | K82: T843387023 | L82: =VLOOKUP([1]Frontal!$K82,[1]REF!B:C,2,0) -> Bombe Révelateur Blanc | M82: Consommable | N82: 10 | O82: =VLOOKUP([1]Frontal!$K82,[1]REF!B:D,3,0) -> 6.01 | P82: 10 | Q82: =[1]Frontal!$P$3:$P$165*[1]Frontal!$O$3:$O$165 -> 60.1 | R82: 2019-02-19 | S82: OK
A83: 81 | B83: 2019-02-19 | C83: 8 | D83: =TEXT([1]Frontal!$B$3:$B$165,"MMMM") -> février | E83: =TEXT([1]Frontal!$B$3:$B$165,"AAAA") -> 2019 | F83: Matthieu. Pimont | G83: 9964 | H83: Daniel. Szekula | I83: Tracage | J83: Daniel. Szekula | K83: R100329823 | L83: =VLOOKUP([1]Frontal!$K83,[1]REF!B:C,2,0) -> Bombe dégrippant lubrifiant | M83: Consommable | N83: 10 | O83: =VLOOKUP([1]Frontal!$K83,[1]REF!B:D,3,0) -> 2.06 | P83: 10 | Q83: =[1]Frontal!$P$3:$P$165*[1]Frontal!$O$3:$O$165 -> 20.6 | R83: 2019-02-19 | S83: OK
A84: 82 | B84: 2019-02-19 | C84: 8 | D84: =TEXT([1]Frontal!$B$3:$B$165,"MMMM") -> février | E84: =TEXT([1]Frontal!$B$3:$B$165,"AAAA") -> 2019 | F84: Matthieu. Pimont | G84: 9964 | H84: Pascal. Steu | I84: G. Bruit | J84: Pascal. Steu | K84: R100341930 | L84: =VLOOKUP([1]Frontal!$K84,[1]REF!B:C,2,0) -> PAIRE GANTS NYLON ENDIUTS NITRILE LISERE BLEU | M84: EPI | N84: 10 | O84: =VLOOKUP([1]Frontal!$K84,[1]REF!B:D,3,0) -> 1.05 | P84: 10 | Q84: =[1]Frontal!$P$3:$P$165*[1]Frontal!$O$3:$O$165 -> 10.5 | R84: 2019-02-19 | S84: OK
A85: 83 | B85: 2019-02-20 | C85: 8 | D85: =TEXT([1]Frontal!$B$3:$B$165,"MMMM") -> février | E85: =TEXT([1]Frontal!$B$3:$B$165,"AAAA") -> 2019 | F85: Saida. Benahmina | G85: =VLOOKUP([1]Frontal!$F85,[1]Liste!A:C,3,0) -> 9968 | H85: Cindy. Thorez | I85: CSC | J85: Cindy. Thorez | K85: P887100000 | L85: =VLOOKUP([1]Frontal!$K85,[1]REF!B:C,2,0) -> ENROULEUR EQUILIBREUR MECANIQUE DE 60 GRAM | M85: Quincaillerie | N85: 10 | O85: =VLOOKUP([1]Frontal!$K85,[1]REF!B:D,3,0) -> 3.05 | P85: 5 | Q85: =[1]Frontal!$P$3:$P$165*[1]Frontal!$O$3:$O$165 -> 15.25 | R85: 2019-02-20 | S85: OK
A86: 84 | B86: 2019-02-20 | C86: 8 | D86: =TEXT([1]Frontal!$B$3:$B$165,"MMMM") -> février | E86: =TEXT([1]Frontal!$B$3:$B$165,"AAAA") -> 2019 | F86: Saida. Benahmina | G86: =VLOOKUP([1]Frontal!$F86,[1]Liste!A:C,3,0) -> 9968 | H86: Fabrice. Richard | I86: CSC | J86: Veronique.Lesicki | K86: R100518518 | L86: =VLOOKUP([1]Frontal!$K86,[1]REF!B:C,2,0) -> Chaussures F MONTANTES CUIR FLEUR NOIR Taille 39 | M86: EPI | N86: 10 | O86: =VLOOKUP([1]Frontal!$K86,[1]REF!B:D,3,0) -> 42.13 | P86: 1 | Q86: =[1]Frontal!$P$3:$P$165*[1]Frontal!$O$3:$O$165 -> 42.13 | R86: 2019-02-22 | S86: OK
A87: 85 | B87: 2019-02-20 | C87: 8 | D87: =TEXT([1]Frontal!$B$3:$B$165,"MMMM") -> février | E87: =TEXT([1]Frontal!$B$3:$B$165,"AAAA") -> 2019 | F87: Saida. Benahmina | G87: =VLOOKUP([1]Frontal!$F87,[1]Liste!A:C,3,0) -> 9968 | H87: Fabrice. Richard | I87: CSC | J87: D.Mathon | K87: R100364321 | L87: =VLOOKUP([1]Frontal!$K87,[1]REF!B:C,2,0) -> Chaussures F TENNIS EN CROUPON VELOURS ROUGE Taille 41 | M87: EPI | N87: 10 | O87: =VLOOKUP([1]Frontal!$K87,[1]REF!B:D,3,0) -> 33.4 | P87: 1 | Q87: =[1]Frontal!$P$3:$P$165*[1]Frontal!$O$3:$O$165 -> 33.4 | R87: 2019-02-22 | S87: OK
A88: 86 | B88: 2019-02-21 | C88: 8 | D88: =TEXT([1]Frontal!$B$3:$B$165,"MMMM") -> février | E88: =TEXT([1]Frontal!$B$3:$B$165,"AAAA") -> 2019 | F88: Saida. Benahmina | G88: =VLOOKUP([1]Frontal!$F88,[1]Liste!A:C,3,0) -> 9968 | H88: Olivier. Foulon | I88: PLS | J88: Olivier. Foulon | K88: X957595004 | L88: =VLOOKUP([1]Frontal!$K88,[1]REF!B:C,2,0) -> Semelle T43 | M88: EPI | N88: 10 | O88: =VLOOKUP([1]Frontal!$K88,[1]REF!B:D,3,0) -> 0.64 | P88: 3 | Q88: =[1]Frontal!$P$3:$P$165*[1]Frontal!$O$3:$O$165 -> 1.92 | R88: 2019-02-21 | S88: OK
A89: 87 | B89: 2019-02-21 | C89: 8 | D89: =TEXT([1]Frontal!$B$3:$B$165,"MMMM") -> février | E89: =TEXT([1]Frontal!$B$3:$B$165,"AAAA") -> 2019 | F89: Saida. Benahmina | G89: =VLOOKUP([1]Frontal!$F89,[1]Liste!A:C,3,0) -> 9968 | H89: Olivier. Foulon | I89: PLS | J89: Olivier. Foulon | K89: X957596004 | L89: =VLOOKUP([1]Frontal!$K89,[1]REF!B:C,2,0) -> Semelle T45 | M89: EPI | N89: 10 | O89: =VLOOKUP([1]Frontal!$K89,[1]REF!B:D,3,0) -> 0.64 | P89: 3 | Q89: =[1]Frontal!$P$3:$P$165*[1]Frontal!$O$3:$O$165 -> 1.92 | R89: 2019-02-21 | S89: OK
A90: 88 | B90: 2019-02-21 | C90: 8 | D90: =TEXT([1]Frontal!$B$3:$B$165,"MMMM") -> février | E90: =TEXT([1]Frontal!$B$3:$B$165,"AAAA") -> 2019 | F90: Saida. Benahmina | G90: =VLOOKUP([1]Frontal!$F90,[1]Liste!A:C,3,0) -> 9968 | H90: Olivier. Foulon | I90: PLS | J90: Olivier. Foulon | K90: X957596403 | L90: =VLOOKUP([1]Frontal!$K90,[1]REF!B:C,2,0) -> Semelle T46 | M90: EPI | N90: 10 | O90: =VLOOKUP([1]Frontal!$K90,[1]REF!B:D,3,0) -> 0.65 | P90: 2 | Q90: =[1]Frontal!$P$3:$P$165*[1]Frontal!$O$3:$O$165 -> 1.3 | R90: 2019-02-21 | S90: OK
A91: 89 | B91: 2019-02-21 | C91: 8 | D91: =TEXT([1]Frontal!$B$3:$B$165,"MMMM") -> février | E91: =TEXT([1]Frontal!$B$3:$B$165,"AAAA") -> 2019 | F91: Saida. Benahmina | G91: =VLOOKUP([1]Frontal!$F91,[1]Liste!A:C,3,0) -> 9968 | H91: Olivier. Foulon | I91: PLS | J91: Olivier. Foulon | K91: R100625298 | L91: =VLOOKUP([1]Frontal!$K91,[1]REF!B:C,2,0) -> Gilet réfléchissant XL | M91: EPI | N91: 10 | O91: =VLOOKUP([1]Frontal!$K91,[1]REF!B:D,3,0) -> 5.77 | P91: 4 | Q91: =[1]Frontal!$P$3:$P$165*[1]Frontal!$O$3:$O$165 -> 23.08 | R91: 2019-02-21 | S91: OK
A92: 90 | B92: 2019-02-21 | C92: 8 | D92: =TEXT([1]Frontal!$B$3:$B$165,"MMMM") -> février | E92: =TEXT([1]Frontal!$B$3:$B$165,"AAAA") -> 2019 | F92: Saida. Benahmina | G92: =VLOOKUP([1]Frontal!$F92,[1]Liste!A:C,3,0) -> 9968 | H92: Olivier. Foulon | I92: PLS | J92: Olivier. Foulon | K92: R100625297 | L92: =VLOOKUP([1]Frontal!$K92,[1]REF!B:C,2,0) -> Gilet réfléchissant L | M92: EPI | N92: 10 | O92: =VLOOKUP([1]Frontal!$K92,[1]REF!B:D,3,0) -> 5.77 | P92: 5 | Q92: =[1]Frontal!$P$3:$P$165*[1]Frontal!$O$3:$O$165 -> 28.85 | R92: 2019-02-21 | S92: OK
A93: 91 | B93: 2019-02-22 | C93: 8 | D93: =TEXT([1]Frontal!$B$3:$B$165,"MMMM") -> février | E93: =TEXT([1]Frontal!$B$3:$B$165,"AAAA") -> 2019 | F93: Matthieu. Pimont | G93: 9964 | H93: Pascal. Steu | I93: G. Bruit | J93: Pascal. Steu | K93: P645136004 | L93: =VLOOKUP([1]Frontal!$K93,[1]REF!B:C,2,0) -> Pince coupante | M93: Outillage | N93: 10 | O93: =VLOOKUP([1]Frontal!$K93,[1]REF!B:D,3,0) -> 10.47 | P93: 1 | Q93: =[1]Frontal!$P$3:$P$165*[1]Frontal!$O$3:$O$165 -> 10.47 | R93: 2019-02-27 | S93: OK
A94: 92 | B94: 2019-02-22 | C94: 8 | D94: =TEXT([1]Frontal!$B$3:$B$165,"MMMM") -> février | E94: =TEXT([1]Frontal!$B$3:$B$165,"AAAA") -> 2019 | F94: Matthieu. Pimont | G94: 9964 | H94: Pascal. Steu | I94: G. Bruit | J94: Pascal. Steu | K94: P671166600 | L94: =VLOOKUP([1]Frontal!$K94,[1]REF!B:C,2,0) -> Pince multiprise | M94: Outillage | N94: 10 | O94: =VLOOKUP([1]Frontal!$K94,[1]REF!B:D,3,0) -> 9.54 | P94: 1 | Q94: =[1]Frontal!$P$3:$P$165*[1]Frontal!$O$3:$O$165 -> 9.54 | R94: 2019-03-01 | S94: OK
A95: 93 | B95: 2019-02-22 | C95: 8 | D95: =TEXT([1]Frontal!$B$3:$B$165,"MMMM") -> février | E95: =TEXT([1]Frontal!$B$3:$B$165,"AAAA") -> 2019 | F95: Saida. Benahmina | G95: =VLOOKUP([1]Frontal!$F95,[1]Liste!A:C,3,0) -> 9968 | H95: Fabrice. Richard | I95: CSC | J95: Fabrice. Richard | K95: R100646629 | L95: =VLOOKUP([1]Frontal!$K95,[1]REF!B:C,2,0) -> PAIRE GANTS T7 MASTIC laine blanc liseré Jaune | M95: EPI | N95: 10 | O95: =VLOOKUP([1]Frontal!$K95,[1]REF!B:D,3,0) -> 0.6 | P95: 200 | Q95: =[1]Frontal!$P$3:$P$165*[1]Frontal!$O$3:$O$165 -> 120 | R95: 2019-02-26 | S95: OK
A96: 94 | B96: 2019-02-22 | C96: 8 | D96: =TEXT([1]Frontal!$B$3:$B$165,"MMMM") -> février | E96: =TEXT([1]Frontal!$B$3:$B$165,"AAAA") -> 2019 | F96: Cédric. Longatte | G96: =VLOOKUP([1]Frontal!$F96,[1]Liste!A:C,3,0) -> 9967 | H96: Michael. Defontaine | I96: CAP | J96: Michael. Defontaine | K96: X951506724 | L96: =VLOOKUP([1]Frontal!$K96,[1]REF!B:C,2,0) -> Bouchon D'oreille | M96: EPI | N96: 10 | O96: =VLOOKUP([1]Frontal!$K96,[1]REF!B:D,3,0) -> 1.01 | P96: 50 | Q96: =[1]Frontal!$P$3:$P$165*[1]Frontal!$O$3:$O$165 -> 50.5 | R96: 2019-02-22 | S96: OK
A97: 95 | B97: 2019-02-22 | C97: 8 | D97: =TEXT([1]Frontal!$B$3:$B$165,"MMMM") -> février | E97: =TEXT([1]Frontal!$B$3:$B$165,"AAAA") -> 2019 | F97: Matthieu. Pimont | G97: 9964 | H97: Daniel. Szekula | I97: Tracage | J97: Daniel. Szekula | K97: X951506724 | L97: =VLOOKUP([1]Frontal!$K97,[1]REF!B:C,2,0) -> Bouchon D'oreille | M97: EPI | N97: 10 | O97: =VLOOKUP([1]Frontal!$K97,[1]REF!B:D,3,0) -> 1.01 | P97: 50 | Q97: =[1]Frontal!$P$3:$P$165*[1]Frontal!$O$3:$O$165 -> 50.5 | R97: 2019-02-22 | S97: OK
A98: 96 | B98: 2019-02-22 | C98: 8 | D98: =TEXT([1]Frontal!$B$3:$B$165,"MMMM") -> février | E98: =TEXT([1]Frontal!$B$3:$B$165,"AAAA") -> 2019 | F98: Saida. Benahmina | G98: =VLOOKUP([1]Frontal!$F98,[1]Liste!A:C,3,0) -> 9968 | H98: Cindy. Thorez | I98: CSC | J98: Cindy. Thorez | K98: X951506724 | L98: =VLOOKUP([1]Frontal!$K98,[1]REF!B:C,2,0) -> Bouchon D'oreille | M98: EPI | N98: 10 | O98: =VLOOKUP([1]Frontal!$K98,[1]REF!B:D,3,0) -> 1.01 | P98: 50 | Q98: =[1]Frontal!$P$3:$P$165*[1]Frontal!$O$3:$O$165 -> 50.5 | R98: 2019-02-22 | S98: OK
A99: 97 | B99: 2019-02-22 | C99: 8 | D99: =TEXT([1]Frontal!$B$3:$B$165,"MMMM") -> février | E99: =TEXT([1]Frontal!$B$3:$B$165,"AAAA") -> 2019 | F99: Saida. Benahmina | G99: =VLOOKUP([1]Frontal!$F99,[1]Liste!A:C,3,0) -> 9968 | H99: Cathy.Dhainaut | I99: Bloqueur | J99: Cathy.Dhainaut | K99: 4939031060 | L99: =VLOOKUP([1]Frontal!$K99,[1]REF!B:C,2,0) -> Pastilles adhésives ovales ORANGE | M99: Consommable | N99: 10 | O99: =VLOOKUP([1]Frontal!$K99,[1]REF!B:D,3,0) -> 7.44 | P99: 1 | Q99: =[1]Frontal!$P$3:$P$165*[1]Frontal!$O$3:$O$165 -> 7.44 | R99: 2019-02-22 | S99: OK
A100: 98 | B100: 2019-02-25 | C100: 9 | D100: =TEXT([1]Frontal!$B$3:$B$165,"MMMM") -> février | E100: =TEXT([1]Frontal!$B$3:$B$165,"AAAA") -> 2019 | F100: Saida. Benahmina | G100: =VLOOKUP([1]Frontal!$F100,[1]Liste!A:C,3,0) -> 9968 | H100: Christian. Kaliszewski | I100: Bloqueur | J100: Christian. Kaliszewski | K100: 4939031056 | L100: =VLOOKUP([1]Frontal!$K100,[1]REF!B:C,2,0) -> Pastilles adhésives ovales JAUNE | M100: Consommable | N100: 10 | O100: =VLOOKUP([1]Frontal!$K100,[1]REF!B:D,3,0) -> 8.09 | P100: 5 | Q100: =[1]Frontal!$P$3:$P$165*[1]Frontal!$O$3:$O$165 -> 40.45 | R100: 2019-02-25 | S100: OK
A101: 99 | B101: 2019-02-25 | C101: 9 | D101: =TEXT([1]Frontal!$B$3:$B$165,"MMMM") -> février | E101: =TEXT([1]Frontal!$B$3:$B$165,"AAAA") -> 2019 | F101: Cédric. Longatte | G101: =VLOOKUP([1]Frontal!$F101,[1]Liste!A:C,3,0) -> 9967 | H101: Michael. Defontaine | I101: CAP | J101: Michael. Defontaine | K101: R100619575 | L101: =VLOOKUP([1]Frontal!$K101,[1]REF!B:C,2,0) -> Surlunettes | M101: EPI | N101: 10 | O101: =VLOOKUP([1]Frontal!$K101,[1]REF!B:D,3,0) -> 6.07 | P101: 4 | Q101: =[1]Frontal!$P$3:$P$165*[1]Frontal!$O$3:$O$165 -> 24.28 | R101: 2019-02-25 | S101: OK
A102: 100 | B102: 2019-02-26 | C102: 9 | D102: =TEXT([1]Frontal!$B$3:$B$165,"MMMM") -> février | E102: =TEXT([1]Frontal!$B$3:$B$165,"AAAA") -> 2019 | F102: Saida. Benahmina | G102: =VLOOKUP([1]Frontal!$F102,[1]Liste!A:C,3,0) -> 9968 | H102: Olivier. Foulon | I102: PLS | J102: Firmin. Patrick | K102: R100601460 | L102: =VLOOKUP([1]Frontal!$K102,[1]REF!B:C,2,0) -> Chaussures H BASSES CUIR FLEUR NOIR HYDROFUGE Taille 44 | M102: EPI | N102: 10 | O102: =VLOOKUP([1]Frontal!$K102,[1]REF!B:D,3,0) -> 20.8 | P102: 1 | Q102: =[1]Frontal!$P$3:$P$165*[1]Frontal!$O$3:$O$165 -> 20.8 | R102: 2019-02-26 | S102: OK
A103: 101 | B103: 2019-02-26 | C103: 9 | D103: =TEXT([1]Frontal!$B$3:$B$165,"MMMM") -> février | E103: =TEXT([1]Frontal!$B$3:$B$165,"AAAA") -> 2019 | F103: Saida. Benahmina | G103: =VLOOKUP([1]Frontal!$F103,[1]Liste!A:C,3,0) -> 9968 | H103: Olivier. Foulon | I103: PLS | J103: Gilbert. Patrick | K103: R100518630 | L103: =VLOOKUP([1]Frontal!$K103,[1]REF!B:C,2,0) -> Chaussures H VILLE TYPE MOCASSIN CUIR PLEINE FLEUR Taille 44 | M103: EPI | N103: 10 | O103: =VLOOKUP([1]Frontal!$K103,[1]REF!B:D,3,0) -> 33.02 | P103: 1 | Q103: =[1]Frontal!$P$3:$P$165*[1]Frontal!$O$3:$O$165 -> 33.02 | R103: 2019-02-26 | S103: OK
A104: 102 | B104: 2019-02-26 | C104: 9 | D104: =TEXT([1]Frontal!$B$3:$B$165,"MMMM") -> février | E104: =TEXT([1]Frontal!$B$3:$B$165,"AAAA") -> 2019 | F104: Matthieu. Pimont | G104: 9964 | H104: Pascal. Steu | I104: G. Bruit | J104: Pascal. Steu | K104: P645136004 | L104: =VLOOKUP([1]Frontal!$K104,[1]REF!B:C,2,0) -> Pince coupante | M104: Outillage | N104: 10 | O104: =VLOOKUP([1]Frontal!$K104,[1]REF!B:D,3,0) -> 10.47 | P104: 1 | Q104: =[1]Frontal!$P$3:$P$165*[1]Frontal!$O$3:$O$165 -> 10.47 | R104: 2019-02-26 | S104: OK
A105: 103 | B105: 2019-02-26 | C105: 9 | D105: =TEXT([1]Frontal!$B$3:$B$165,"MMMM") -> février | E105: =TEXT([1]Frontal!$B$3:$B$165,"AAAA") -> 2019 | F105: Saida. Benahmina | G105: =VLOOKUP([1]Frontal!$F105,[1]Liste!A:C,3,0) -> 9968 | H105: Cindy. Thorez | I105: CSC | J105: Cindy. Thorez | K105: R100646629 | L105: =VLOOKUP([1]Frontal!$K105,[1]REF!B:C,2,0) -> PAIRE GANTS T7 MASTIC laine blanc liseré Jaune | M105: EPI | N105: 10 | O105: =VLOOKUP([1]Frontal!$K105,[1]REF!B:D,3,0) -> 0.6 | P105: 200 | Q105: =[1]Frontal!$P$3:$P$165*[1]Frontal!$O$3:$O$165 -> 120 | R105: 2019-02-27 | S105: OK
A106: 104 | B106: 2019-02-27 | C106: 9 | D106: =TEXT([1]Frontal!$B$3:$B$165,"MMMM") -> février | E106: =TEXT([1]Frontal!$B$3:$B$165,"AAAA") -> 2019 | F106: Matthieu. Pimont | G106: 9964 | H106: Pascal. Steu | I106: G. Bruit | J106: D-HELFT.Peggy | K106: R100028719 | L106: =VLOOKUP([1]Frontal!$K106,[1]REF!B:C,2,0) -> Rouleau de ruban Adhesif | M106: Consommable | N106: 10 | O106: =VLOOKUP([1]Frontal!$K106,[1]REF!B:D,3,0) -> 25.05 | P106: 2 | Q106: =[1]Frontal!$P$3:$P$165*[1]Frontal!$O$3:$O$165 -> 50.1 | R106: 2019-02-27 | S106: OK
A107: 105 | B107: 2019-02-27 | C107: 9 | D107: =TEXT([1]Frontal!$B$3:$B$165,"MMMM") -> février | E107: =TEXT([1]Frontal!$B$3:$B$165,"AAAA") -> 2019 | F107: Matthieu. Pimont | G107: 9964 | H107: Pascal. Steu | I107: G. Bruit | J107: Pascal. Steu | K107: X951506724 | L107: =VLOOKUP([1]Frontal!$K107,[1]REF!B:C,2,0) -> Bouchon D'oreille | M107: EPI | N107: 10 | O107: =VLOOKUP([1]Frontal!$K107,[1]REF!B:D,3,0) -> 1.01 | P107: 50 | Q107: =[1]Frontal!$P$3:$P$165*[1]Frontal!$O$3:$O$165 -> 50.5 | R107: 2019-02-27 | S107: OK
A108: 106 | B108: 2019-02-27 | C108: 9 | D108: =TEXT([1]Frontal!$B$3:$B$165,"MMMM") -> février | E108: =TEXT([1]Frontal!$B$3:$B$165,"AAAA") -> 2019 | F108: Aka.Amany. Patrice | G108: =VLOOKUP([1]Frontal!$F108,[1]Liste!A:C,3,0) -> 9962 | H108: Abdelkadder Tayebi | I108: EPF | J108: Abdelkadder Tayebi | K108: R100601454 | L108: =VLOOKUP([1]Frontal!$K108,[1]REF!B:C,2,0) -> Chaussures H BASSES CUIR FLEUR NOIR HYDROFUGE Taille 42 | M108: EPI | N108: 10 | O108: =VLOOKUP([1]Frontal!$K108,[1]REF!B:D,3,0) -> 20.8 | P108: 1 | Q108: =[1]Frontal!$P$3:$P$165*[1]Frontal!$O$3:$O$165 -> 20.8 | R108: 2019-02-27 | S108: OK
A109: 107 | B109: 2019-02-27 | C109: 9 | D109: =TEXT([1]Frontal!$B$3:$B$165,"MMMM") -> février | E109: =TEXT([1]Frontal!$B$3:$B$165,"AAAA") -> 2019 | F109: Aka.Amany. Patrice | G109: =VLOOKUP([1]Frontal!$F109,[1]Liste!A:C,3,0) -> 9962 | H109: Séverine. Leborgne | I109: EPF | J109: Séverine. Leborgne | K109: R100646629 | L109: =VLOOKUP([1]Frontal!$K109,[1]REF!B:C,2,0) -> PAIRE GANTS T7 MASTIC laine blanc liseré Jaune | M109: EPI | N109: 10 | O109: =VLOOKUP([1]Frontal!$K109,[1]REF!B:D,3,0) -> 0.6 | P109: 200 | Q109: =[1]Frontal!$P$3:$P$165*[1]Frontal!$O$3:$O$165 -> 120 | R109: 2019-02-27 | S109: OK
A110: 108 | B110: 2019-02-27 | C110: 9 | D110: =TEXT([1]Frontal!$B$3:$B$165,"MMMM") -> février | E110: =TEXT([1]Frontal!$B$3:$B$165,"AAAA") -> 2019 | F110: Saida. Benahmina | G110: =VLOOKUP([1]Frontal!$F110,[1]Liste!A:C,3,0) -> 9968 | H110: Fabrice. Richard | I110: CSC | J110: Fabrice. Richard | K110: R100646632 | L110: =VLOOKUP([1]Frontal!$K110,[1]REF!B:C,2,0) -> PAIRE GANTS T10 MASTIC | M110: EPI | N110: 10 | O110: =VLOOKUP([1]Frontal!$K110,[1]REF!B:D,3,0) -> 0.55 | P110: 200 | Q110: =[1]Frontal!$P$3:$P$165*[1]Frontal!$O$3:$O$165 -> 110 | R110: 2019-02-27 | S110: OK
A111: 109 | B111: 2019-03-05 | C111: 10 | D111: =TEXT([1]Frontal!$B$3:$B$165,"MMMM") -> mars | E111: =TEXT([1]Frontal!$B$3:$B$165,"AAAA") -> 2019 | F111: Aka.Amany. Patrice | G111: =VLOOKUP([1]Frontal!$F111,[1]Liste!A:C,3,0) -> 9962 | H111: Aka.Amany. Patrice | I111: EPF | J111: Bilde.christian | K111: R100201617 | L111: =VLOOKUP([1]Frontal!$K111,[1]REF!B:C,2,0) -> Chaussures securite PT43 SAFRAN BASSE | M111: EPI | N111: 10 | O111: =VLOOKUP([1]Frontal!$K111,[1]REF!B:D,3,0) -> 27.2 | P111: 1 | Q111: =[1]Frontal!$P$3:$P$165*[1]Frontal!$O$3:$O$165 -> 27.2 | R111: 2019-03-05 | S111: OK
A112: 110 | B112: 2019-03-05 | C112: 10 | D112: =TEXT([1]Frontal!$B$3:$B$165,"MMMM") -> mars | E112: =TEXT([1]Frontal!$B$3:$B$165,"AAAA") -> 2019 | F112: Vincent. Loquet | G112: =VLOOKUP([1]Frontal!$F112,[1]Liste!A:C,3,0) -> 9978 | H112: Vincent. Loquet | I112: QPN | J112: Laurent. Peru | K112: R100289692 | L112: =VLOOKUP([1]Frontal!$K112,[1]REF!B:C,2,0) -> RUBAN ADHESIF DOUBLE FACE ROUGE | M112: Consommable | N112: 10 | O112: =VLOOKUP([1]Frontal!$K112,[1]REF!B:D,3,0) -> 13.4 | P112: 2 | Q112: =[1]Frontal!$P$3:$P$165*[1]Frontal!$O$3:$O$165 -> 26.8 | R112: 2019-03-05 | S112: OK
A113: 111 | B113: 2019-03-05 | C113: 10 | D113: =TEXT([1]Frontal!$B$3:$B$165,"MMMM") -> mars | E113: =TEXT([1]Frontal!$B$3:$B$165,"AAAA") -> 2019 | F113: Vincent. Loquet | G113: =VLOOKUP([1]Frontal!$F113,[1]Liste!A:C,3,0) -> 9978 | H113: Vincent. Loquet | I113: QPN | J113: Laurent. Peru | K113: R100346597 | L113: =VLOOKUP([1]Frontal!$K113,[1]REF!B:C,2,0) -> Dose lavande | M113: Consommable | N113: 10 | O113: =VLOOKUP([1]Frontal!$K113,[1]REF!B:D,3,0) -> 0.22 | P113: 20 | Q113: =[1]Frontal!$P$3:$P$165*[1]Frontal!$O$3:$O$165 -> 4.4 | R113: 2019-03-05 | S113: OK
A114: 112 | B114: 2019-03-05 | C114: 10 | D114: =TEXT([1]Frontal!$B$3:$B$165,"MMMM") -> mars | E114: =TEXT([1]Frontal!$B$3:$B$165,"AAAA") -> 2019 | F114: Saida. Benahmina | G114: =VLOOKUP([1]Frontal!$F114,[1]Liste!A:C,3,0) -> 9968 | H114: Olivier. Foulon | I114: PLS | J114: Jacques. Mery | K114: R100503295 | L114: =VLOOKUP([1]Frontal!$K114,[1]REF!B:C,2,0) -> Chaussures MONTANTE CUIR PLEINE FLEUR Taille 43 | M114: EPI | N114: 10 | O114: =VLOOKUP([1]Frontal!$K114,[1]REF!B:D,3,0) -> 35.27 | P114: 1 | Q114: =[1]Frontal!$P$3:$P$165*[1]Frontal!$O$3:$O$165 -> 35.27 | R114: 2019-03-08 | S114: OK
A115: 113 | B115: 2019-03-05 | C115: 10 | D115: =TEXT([1]Frontal!$B$3:$B$165,"MMMM") -> mars | E115: =TEXT([1]Frontal!$B$3:$B$165,"AAAA") -> 2019 | F115: Saida. Benahmina | G115: =VLOOKUP([1]Frontal!$F115,[1]Liste!A:C,3,0) -> 9968 | H115: Francois. Hanne | I115: AQM | J115: Sabrine. Havez | K115: R100613334 | L115: =VLOOKUP([1]Frontal!$K115,[1]REF!B:C,2,0) -> Chaussures MI- HAUTES CUIR PLEINE FLEUR HYDROFUGE Taille37 | M115: EPI | N115: 10 | O115: =VLOOKUP([1]Frontal!$K115,[1]REF!B:D,3,0) -> 30.32 | P115: 1 | Q115: 1 | S115: NOK
A116: 114 | B116: 2019-03-05 | C116: 10 | D116: =TEXT([1]Frontal!$B$3:$B$165,"MMMM") -> mars | E116: =TEXT([1]Frontal!$B$3:$B$165,"AAAA") -> 2019 | F116: Saida. Benahmina | G116: =VLOOKUP([1]Frontal!$F116,[1]Liste!A:C,3,0) -> 9968 | H116: Francois. Hanne | I116: AQM | J116: Eric. Francois | K116: R100643527 | L116: =VLOOKUP([1]Frontal!$K116,[1]REF!B:C,2,0) -> Chaussures CUIR PLEINE FLEUR Taille 43 | M116: EPI | N116: 10 | O116: =VLOOKUP([1]Frontal!$K116,[1]REF!B:D,3,0) -> 49.31 | P116: 1 | Q116: =[1]Frontal!$P$3:$P$165*[1]Frontal!$O$3:$O$165 -> 49.31 | S116: NOK
A117: 115 | B117: 2019-03-06 | C117: 10 | D117: =TEXT([1]Frontal!$B$3:$B$165,"MMMM") -> mars | E117: =TEXT([1]Frontal!$B$3:$B$165,"AAAA") -> 2019 | F117: Saida. Benahmina | G117: =VLOOKUP([1]Frontal!$F117,[1]Liste!A:C,3,0) -> 9968 | H117: Cindy. Thorez | I117: CSC | J117: Cindy. Thorez | K117: R100646629 | L117: =VLOOKUP([1]Frontal!$K117,[1]REF!B:C,2,0) -> PAIRE GANTS T7 MASTIC laine blanc liseré Jaune | M117: EPI | N117: 10 | O117: =VLOOKUP([1]Frontal!$K117,[1]REF!B:D,3,0) -> 0.6 | P117: 100 | Q117: =[1]Frontal!$P$3:$P$165*[1]Frontal!$O$3:$O$165 -> 60 | R117: 2019-03-06 | S117: OK
A118: 116 | B118: 2019-03-06 | C118: 10 | D118: =TEXT([1]Frontal!$B$3:$B$165,"MMMM") -> mars | E118: =TEXT([1]Frontal!$B$3:$B$165,"AAAA") -> 2019 | F118: Saida. Benahmina | G118: =VLOOKUP([1]Frontal!$F118,[1]Liste!A:C,3,0) -> 9968 | H118: Cindy. Thorez | I118: CSC | J118: Cindy. Thorez | K118: R100646629 | L118: =VLOOKUP([1]Frontal!$K118,[1]REF!B:C,2,0) -> PAIRE GANTS T7 MASTIC laine blanc liseré Jaune | M118: EPI | N118: 10 | O118: =VLOOKUP([1]Frontal!$K118,[1]REF!B:D,3,0) -> 0.6 | P118: 200 | Q118: =[1]Frontal!$P$3:$P$165*[1]Frontal!$O$3:$O$165 -> 120 | S118: NOK
A119: 117 | B119: 2019-03-06 | C119: 10 | D119: =TEXT([1]Frontal!$B$3:$B$165,"MMMM") -> mars | E119: =TEXT([1]Frontal!$B$3:$B$165,"AAAA") -> 2019 | F119: Aka.Amany. Patrice | G119: =VLOOKUP([1]Frontal!$F119,[1]Liste!A:C,3,0) -> 9962 | H119: Abdelkadder Tayebi | I119: EPF | J119: Jean Luc Palwak | K119: R100646630 | L119: =VLOOKUP([1]Frontal!$K119,[1]REF!B:C,2,0) -> PAIRE GANTS T8 MASTIC ROUGE | M119: EPI | N119: 10 | O119: =VLOOKUP([1]Frontal!$K119,[1]REF!B:D,3,0) -> 0.6 | P119: 200 | Q119: =[1]Frontal!$P$3:$P$165*[1]Frontal!$O$3:$O$165 -> 120 | S119: NOK
A120: 118 | B120: 2019-03-06 | C120: 10 | D120: =TEXT([1]Frontal!$B$3:$B$165,"MMMM") -> mars | E120: =TEXT([1]Frontal!$B$3:$B$165,"AAAA") -> 2019 | F120: Aka.Amany. Patrice | G120: =VLOOKUP([1]Frontal!$F120,[1]Liste!A:C,3,0) -> 9962 | H120: Séverine. Leborgne | I120: EPF | J120: Séverine. Leborgne | K120: R100702879 | L120: =VLOOKUP([1]Frontal!$K120,[1]REF!B:C,2,0) -> Testeur allume cigare pour automobile | M120: Informatique | N120: 10 | O120: =VLOOKUP([1]Frontal!$K120,[1]REF!B:D,3,0) -> 12.68 | P120: 5 | Q120: =[1]Frontal!$P$3:$P$165*[1]Frontal!$O$3:$O$165 -> 63.4 | R120: 2019-03-14 | S120: OK
A121: 119 | B121: 2019-03-06 | C121: 10 | D121: =TEXT([1]Frontal!$B$3:$B$165,"MMMM") -> mars | E121: =TEXT([1]Frontal!$B$3:$B$165,"AAAA") -> 2019 | F121: Cedric. Longatte | G121: =VLOOKUP([1]Frontal!$F121,[1]Liste!A:C,3,0) ->  | H121: Michael. Defontaine | I121: CAP | J121: Dominique. Delville | K121: R100518648 | L121: =VLOOKUP([1]Frontal!$K121,[1]REF!B:C,2,0) -> ChaussuresTYPE BASKET H CUIR VELOURS Taille 43 | M121: EPI | N121: 10 | O121: =VLOOKUP([1]Frontal!$K121,[1]REF!B:D,3,0) -> 34.6 | P121: 1 | Q121: =[1]Frontal!$P$3:$P$165*[1]Frontal!$O$3:$O$165 -> 34.6 | R121: 2019-03-11 | S121: OK
A122: 120 | B122: 2019-03-07 | C122: 10 | D122: =TEXT([1]Frontal!$B$3:$B$165,"MMMM") -> mars | E122: =TEXT([1]Frontal!$B$3:$B$165,"AAAA") -> 2019 | F122: Vincent. Loquet | G122: =VLOOKUP([1]Frontal!$F122,[1]Liste!A:C,3,0) -> 9978 | H122: Vincent. Loquet | I122: QPN | J122: Laurent. Peru | K122: P955157073 | L122: =VLOOKUP([1]Frontal!$K122,[1]REF!B:C,2,0) -> Gobelet | M122: Consommable | N122: 10 | O122: =VLOOKUP([1]Frontal!$K122,[1]REF!B:D,3,0) -> 1 | P122: 2 | Q122: =[1]Frontal!$P$3:$P$165*[1]Frontal!$O$3:$O$165 -> 2 | R122: 2019-03-07 | S122: OK
A123: 121 | B123: 2019-03-07 | C123: 10 | D123: =TEXT([1]Frontal!$B$3:$B$165,"MMMM") -> mars | E123: =TEXT([1]Frontal!$B$3:$B$165,"AAAA") -> 2019 | F123: Vincent. Loquet | G123: =VLOOKUP([1]Frontal!$F123,[1]Liste!A:C,3,0) -> 9978 | H123: Vincent. Loquet | I123: QPN | J123: Laurent. Peru | K123: R100386177 | L123: =VLOOKUP([1]Frontal!$K123,[1]REF!B:C,2,0) -> Chiffon micro fibre Jaune | M123: Consommable | N123: 10 | O123: =VLOOKUP([1]Frontal!$K123,[1]REF!B:D,3,0) -> 117.5 | P123: 1 | Q123: =[1]Frontal!$P$3:$P$165*[1]Frontal!$O$3:$O$165 -> 117.5 | R123: 2019-03-07 | S123: OK
A124: 122 | B124: 2019-03-07 | C124: 10 | D124: =TEXT([1]Frontal!$B$3:$B$165,"MMMM") -> mars | E124: =TEXT([1]Frontal!$B$3:$B$165,"AAAA") -> 2019 | F124: Vincent. Loquet | G124: =VLOOKUP([1]Frontal!$F124,[1]Liste!A:C,3,0) -> 9978 | H124: Vincent. Loquet | I124: QPN | J124: Laurent. Peru | K124: P935852471 | L124: =VLOOKUP([1]Frontal!$K124,[1]REF!B:C,2,0) -> Chiffon boite de 10KG | M124: Consommable | N124: 10 | O124: =VLOOKUP([1]Frontal!$K124,[1]REF!B:D,3,0) -> 6.6 | P124: 1 | Q124: =[1]Frontal!$P$3:$P$165*[1]Frontal!$O$3:$O$165 -> 6.6 | R124: 2019-03-07 | S124: OK
A125: 123 | B125: 2019-03-07 | C125: 10 | D125: =TEXT([1]Frontal!$B$3:$B$165,"MMMM") -> mars | E125: =TEXT([1]Frontal!$B$3:$B$165,"AAAA") -> 2019 | F125: Vincent. Loquet | G125: =VLOOKUP([1]Frontal!$F125,[1]Liste!A:C,3,0) -> 9978 | H125: Vincent. Loquet | I125: QPN | J125: Laurent. Peru | K125: R100053693 | L125: =VLOOKUP([1]Frontal!$K125,[1]REF!B:C,2,0) -> Masque peinture à filtre | M125: EPI | N125: 10 | O125: =VLOOKUP([1]Frontal!$K125,[1]REF!B:D,3,0) -> 8.67 | P125: 3 | Q125: =[1]Frontal!$P$3:$P$165*[1]Frontal!$O$3:$O$165 -> 26.01 | R125: 2019-03-07 | S125: OK
A126: 124 | B126: 2019-03-07 | C126: 10 | D126: =TEXT([1]Frontal!$B$3:$B$165,"MMMM") -> mars | E126: =TEXT([1]Frontal!$B$3:$B$165,"AAAA") -> 2019 | F126: Vincent. Loquet | G126: =VLOOKUP([1]Frontal!$F126,[1]Liste!A:C,3,0) -> 9978 | H126: Vincent. Loquet | I126: QPN | J126: Laurent. Peru | K126: P935853177 | L126: =VLOOKUP([1]Frontal!$K126,[1]REF!B:C,2,0) -> Eponge mixte jaune vert | M126: Consommable | N126: 10 | O126: =VLOOKUP([1]Frontal!$K126,[1]REF!B:D,3,0) -> 0.4 | P126: 5 | Q126: =[1]Frontal!$P$3:$P$165*[1]Frontal!$O$3:$O$165 -> 2 | R126: 2019-03-07 | S126: OK
A127: 125 | B127: 2019-03-07 | C127: 10 | D127: =TEXT([1]Frontal!$B$3:$B$165,"MMMM") -> mars | E127: =TEXT([1]Frontal!$B$3:$B$165,"AAAA") -> 2019 | F127: Vincent. Loquet | G127: =VLOOKUP([1]Frontal!$F127,[1]Liste!A:C,3,0) -> 9978 | H127: Vincent. Loquet | I127: QPN | J127: Laurent. Peru | K127: R100450309 | L127: =VLOOKUP([1]Frontal!$K127,[1]REF!B:C,2,0) -> Bombe noir presse | M127: Consommable | N127: 10 | O127: =VLOOKUP([1]Frontal!$K127,[1]REF!B:D,3,0) -> 4.85 | P127: 48 | Q127: =[1]Frontal!$P$3:$P$165*[1]Frontal!$O$3:$O$165 -> 232.8 | R127: 2019-03-15 | S127: OK
A128: 126 | B128: 2019-03-08 | C128: 10 | D128: =TEXT([1]Frontal!$B$3:$B$165,"MMMM") -> mars | E128: =TEXT([1]Frontal!$B$3:$B$165,"AAAA") -> 2019 | F128: Matthieu. Pimont | G128: 9964 | H128: Pascal. Steu | I128: G. Bruit | J128: Pascal. Steu | K128: P671166600 | L128: =VLOOKUP([1]Frontal!$K128,[1]REF!B:C,2,0) -> Pince multiprise | M128: Outillage | N128: 10 | O128: =VLOOKUP([1]Frontal!$K128,[1]REF!B:D,3,0) -> 9.54 | P128: 1 | Q128: =[1]Frontal!$P$3:$P$165*[1]Frontal!$O$3:$O$165 -> 9.54 | R128: 2019-03-08 | S128: OK
A129: 127 | B129: 2019-03-08 | C129: 10 | D129: =TEXT([1]Frontal!$B$3:$B$165,"MMMM") -> mars | E129: =TEXT([1]Frontal!$B$3:$B$165,"AAAA") -> 2019 | F129: Aka.Amany. Patrice | G129: =VLOOKUP([1]Frontal!$F129,[1]Liste!A:C,3,0) -> 9962 | H129: Abdelkadder Tayebi | I129: EPF | J129: JL Palwak | K129: R100646629 | L129: =VLOOKUP([1]Frontal!$K129,[1]REF!B:C,2,0) -> PAIRE GANTS T7 MASTIC laine blanc liseré Jaune | M129: EPI | N129: 10 | O129: =VLOOKUP([1]Frontal!$K129,[1]REF!B:D,3,0) -> 0.6 | P129: 200 | Q129: =[1]Frontal!$P$3:$P$165*[1]Frontal!$O$3:$O$165 -> 120 | R129: 2019-03-08 | S129: OK
A130: 128 | B130: 2019-03-08 | C130: 10 | D130: =TEXT([1]Frontal!$B$3:$B$165,"MMMM") -> mars | E130: =TEXT([1]Frontal!$B$3:$B$165,"AAAA") -> 2019 | F130: Saida. Benahmina | G130: =VLOOKUP([1]Frontal!$F130,[1]Liste!A:C,3,0) -> 9968 | H130: Christian. Kaliszewski | I130: Bloqueur | J130: Christian. Kaliszewski | K130: P958139203 | L130: =VLOOKUP([1]Frontal!$K130,[1]REF!B:C,2,0) -> SAC POUBELLE 30 L | M130: Consommable | N130: 10 | O130: =VLOOKUP([1]Frontal!$K130,[1]REF!B:D,3,0) -> 18.75 | P130: 3 | Q130: =[1]Frontal!$P$3:$P$165*[1]Frontal!$O$3:$O$165 -> 56.25 | R130: 2019-03-08 | S130: OK
A131: 129 | B131: 2019-03-08 | C131: =WEEKNUM($B131,2)-(WEEKDAY(DATE(YEAR(B131),1,4),2)<4)*1 -> 10 | D131: =TEXT([1]Frontal!$B$3:$B$165,"MMMM") -> mars | E131: =TEXT([1]Frontal!$B$3:$B$165,"AAAA") -> 2019 | F131: Saida. Benahmina | G131: =VLOOKUP([1]Frontal!$F131,[1]Liste!A:C,3,0) -> 9968 | H131: Christian. Kaliszewski | I131: Bloqueur | J131: Christian. Kaliszewski | K131: R100095946 | L131: =VLOOKUP([1]Frontal!$K131,[1]REF!B:C,2,0) -> SAC POLYETHYLENE 110L 6 TRANSLUCIDE 700 300 sacs | M131: Consommable | N131: =LEN(K131) -> 10 | O131: =VLOOKUP([1]Frontal!$K131,[1]REF!B:D,3,0) -> 0.16 | P131: 300 | Q131: =[1]Frontal!$P$3:$P$165*[1]Frontal!$O$3:$O$165 -> 48 | R131: 2019-03-15 | S131: OK
A132: 130 | B132: 2019-03-08 | C132: 10 | D132: =TEXT([1]Frontal!$B$3:$B$165,"MMMM") -> mars | E132: =TEXT([1]Frontal!$B$3:$B$165,"AAAA") -> 2019 | F132: Saida. Benahmina | G132: =VLOOKUP([1]Frontal!$F132,[1]Liste!A:C,3,0) -> 9968 | H132: Cindy. Thorez | I132: CSC | J132: Cindy.thorez | K132: R100095946 | L132: =VLOOKUP([1]Frontal!$K132,[1]REF!B:C,2,0) -> SAC POLYETHYLENE 110L 6 TRANSLUCIDE 700 300 sacs | M132: Consommable | N132: 10 | O132: =VLOOKUP([1]Frontal!$K132,[1]REF!B:D,3,0) -> 0.16 | P132: 300 | Q132: =[1]Frontal!$P$3:$P$165*[1]Frontal!$O$3:$O$165 -> 48 | R132: 2019-03-15 | S132: =IF(R132,"OK","NOK") -> OK
A133: 131 | B133: 2019-03-08 | C133: 10 | D133: =TEXT([1]Frontal!$B$3:$B$165,"MMMM") -> mars | E133: =TEXT([1]Frontal!$B$3:$B$165,"AAAA") -> 2019 | F133: Cedric. Longatte | G133: 9964 | H133: Michael. Defontaine | I133: CAP | J133: Samuel Rosier | K133: R100518647 | L133: =VLOOKUP([1]Frontal!$K133,[1]REF!B:C,2,0) -> Chaussures TYPE BASKET H CUIR VELOURS Taille 42 | M133: EPI | N133: 10 | O133: =VLOOKUP([1]Frontal!$K133,[1]REF!B:D,3,0) -> 30.73 | P133: 1 | Q133: =[1]Frontal!$P$3:$P$165*[1]Frontal!$O$3:$O$165 -> 30.73 | R133: 2019-03-13 | S133: OK
A134: 132 | B134: 2019-03-11 | C134: 11 | D134: =TEXT([1]Frontal!$B$3:$B$165,"MMMM") -> mars | E134: =TEXT([1]Frontal!$B$3:$B$165,"AAAA") -> 2019 | F134: Saida. Benahmina | G134: =VLOOKUP([1]Frontal!$F134,[1]Liste!A:C,3,0) -> 9968 | H134: Christian. Kaliszewski | I134: SEBR | J134: Christian. Kaliszewski | K134: R100646629 | L134: =VLOOKUP([1]Frontal!$K134,[1]REF!B:C,2,0) -> PAIRE GANTS T7 MASTIC laine blanc liseré Jaune | M134: EPI | N134: 10 | O134: =VLOOKUP([1]Frontal!$K134,[1]REF!B:D,3,0) -> 0.6 | P134: 100 | Q134: =[1]Frontal!$P$3:$P$165*[1]Frontal!$O$3:$O$165 -> 60 | R134: 2019-03-11 | S134: OK
A135: 133 | B135: 2019-03-11 | C135: 11 | D135: =TEXT([1]Frontal!$B$3:$B$165,"MMMM") -> mars | E135: =TEXT([1]Frontal!$B$3:$B$165,"AAAA") -> 2019 | F135: Saida. Benahmina | G135: =VLOOKUP([1]Frontal!$F135,[1]Liste!A:C,3,0) -> 9968 | H135: Cindy. Thorez | I135: CSC | J135: Cindy. Thorez | K135: R100709481 | L135: =VLOOKUP([1]Frontal!$K135,[1]REF!B:C,2,0) -> Toner Kyocera TK-3160 pour P3045DN | M135: Informatique | N135: 10 | O135: =VLOOKUP([1]Frontal!$K135,[1]REF!B:D,3,0) -> 84.19 | P135: 1 | Q135: =[1]Frontal!$P$3:$P$165*[1]Frontal!$O$3:$O$165 -> 84.19 | R135: 2019-03-08 | S135: OK
A136: 134 | B136: 2019-03-11 | C136: 11 | D136: =TEXT([1]Frontal!$B$3:$B$165,"MMMM") -> mars | E136: =TEXT([1]Frontal!$B$3:$B$165,"AAAA") -> 2019 | F136: Saida. Benahmina | G136: =VLOOKUP([1]Frontal!$F136,[1]Liste!A:C,3,0) -> 9968 | H136: Cindy. Thorez | I136: CSC | J136: Stock | K136: R100709481 | L136: =VLOOKUP([1]Frontal!$K136,[1]REF!B:C,2,0) -> Toner Kyocera TK-3160 pour P3045DN | M136: Informatique | N136: 10 | O136: =VLOOKUP([1]Frontal!$K136,[1]REF!B:D,3,0) -> 84.19 | P136: 2 | Q136: =[1]Frontal!$P$3:$P$165*[1]Frontal!$O$3:$O$165 -> 168.38 | R136: 2019-03-15 | S136: OK
A137: 135 | B137: 2019-03-11 | C137: 11 | D137: =TEXT([1]Frontal!$B$3:$B$165,"MMMM") -> mars | E137: =TEXT([1]Frontal!$B$3:$B$165,"AAAA") -> 2019 | F137: Saida. Benahmina | G137: =VLOOKUP([1]Frontal!$F137,[1]Liste!A:C,3,0) -> 9968 | H137: Fabrice. Richard | I137: CSC | J137: Fabrice. Richard | K137: 4939031057 | L137: =VLOOKUP([1]Frontal!$K137,[1]REF!B:C,2,0) -> Pastilles adhésives ovales VERT | M137: Consommable | N137: 10 | O137: =VLOOKUP([1]Frontal!$K137,[1]REF!B:D,3,0) -> 7.61 | P137: 10 | Q137: =[1]Frontal!$P$3:$P$165*[1]Frontal!$O$3:$O$165 -> 76.1 | R137: 2019-03-14 | S137: OK
A138: 136 | B138: 2019-03-12 | C138: 11 | D138: =TEXT([1]Frontal!$B$3:$B$165,"MMMM") -> mars | E138: =TEXT([1]Frontal!$B$3:$B$165,"AAAA") -> 2019 | F138: Aka.Amany. Patrice | G138: =VLOOKUP([1]Frontal!$F138,[1]Liste!A:C,3,0) -> 9962 | H138: Séverine. Leborgne | I138: EPF | J138: Jean-Luc Pawlak | K138: P935852108 | L138: =VLOOKUP([1]Frontal!$K138,[1]REF!B:C,2,0) -> Chiffonnettes NON TISSE BLEU CELLULOSE POLYESTER 72GRS Lot de 500 | M138: DO | N138: 10 | O138: =VLOOKUP([1]Frontal!$K138,[1]REF!B:D,3,0) -> 65 | P138: 1 | Q138: =[1]Frontal!$P$3:$P$165*[1]Frontal!$O$3:$O$165 -> 65 | R138: 2019-03-14 | S138: OK
A139: 137 | B139: 2019-03-12 | C139: 11 | D139: =TEXT([1]Frontal!$B$3:$B$165,"MMMM") -> mars | E139: =TEXT([1]Frontal!$B$3:$B$165,"AAAA") -> 2019 | F139: Saida. Benahmina | G139: =VLOOKUP([1]Frontal!$F139,[1]Liste!A:C,3,0) -> 9968 | H139: Cindy. Thorez | I139: CSC | J139: Cindy. Thorez | K139: R100691939 | L139: =VLOOKUP([1]Frontal!$K139,[1]REF!B:C,2,0) -> Clé USB avec témoin lumineux pour test | M139: Informatique | N139: 10 | O139: =VLOOKUP([1]Frontal!$K139,[1]REF!B:D,3,0) -> 17.75 | P139: 5 | Q139: =[1]Frontal!$P$3:$P$165*[1]Frontal!$O$3:$O$165 -> 88.75 | S139: NOK
A140: 138 | B140: 2019-03-12 | C140: 11 | D140: =TEXT([1]Frontal!$B$3:$B$165,"MMMM") -> mars | E140: =TEXT([1]Frontal!$B$3:$B$165,"AAAA") -> 2019 | F140: Dpt Qualité | G140: =VLOOKUP([1]Frontal!$F140,[1]Liste!A:C,3,0) -> 9961 | H140: JP. Masson | I140: Dpt Qualité | J140: Stock | K140: R000111100 | L140: =VLOOKUP([1]Frontal!$K140,[1]REF!B:C,2,0) -> Piles LR06 | M140: Pile | N140: 10 | O140: =VLOOKUP([1]Frontal!$K140,[1]REF!B:D,3,0) -> 0.155 | P140: 70 | Q140: =[1]Frontal!$P$3:$P$165*[1]Frontal!$O$3:$O$165 -> 10.85 | R140: 2019-03-14 | S140: OK
A141: 139 | B141: 2019-03-13 | C141: 11 | D141: =TEXT([1]Frontal!$B$3:$B$165,"MMMM") -> mars | E141: =TEXT([1]Frontal!$B$3:$B$165,"AAAA") -> 2019 | F141: Dpt Qualité | G141: =VLOOKUP([1]Frontal!$F141,[1]Liste!A:C,3,0) -> 9961 | H141: Valerie. Masson | I141: Dpt Qualité | J141: Valerie. Masson | K141: P955157073 | L141: =VLOOKUP([1]Frontal!$K141,[1]REF!B:C,2,0) -> Gobelet | M141: Consommable | N141: 10 | O141: =VLOOKUP([1]Frontal!$K141,[1]REF!B:D,3,0) -> 1 | P141: 2 | Q141: =[1]Frontal!$P$3:$P$165*[1]Frontal!$O$3:$O$165 -> 2 | R141: 2019-03-13 | S141: OK
A142: 140 | B142: 2019-03-13 | C142: 11 | D142: =TEXT([1]Frontal!$B$3:$B$165,"MMMM") -> mars | E142: =TEXT([1]Frontal!$B$3:$B$165,"AAAA") -> 2019 | F142: Saida. Benahmina | G142: =VLOOKUP([1]Frontal!$F142,[1]Liste!A:C,3,0) -> 9968 | H142: Cathy.Dhainaut | I142: SEBR | J142: Cathy.Dhainaut | K142: 4939031056 | L142: =VLOOKUP([1]Frontal!$K142,[1]REF!B:C,2,0) -> Pastilles adhésives ovales JAUNE | M142: Consommable | N142: 10 | O142: =VLOOKUP([1]Frontal!$K142,[1]REF!B:D,3,0) -> 8.09 | P142: 1 | Q142: =[1]Frontal!$P$3:$P$165*[1]Frontal!$O$3:$O$165 -> 8.09 | R142: 2019-03-13 | S142: OK
A143: 141 | B143: 2019-03-13 | C143: 11 | D143: =TEXT([1]Frontal!$B$3:$B$165,"MMMM") -> mars | E143: =TEXT([1]Frontal!$B$3:$B$165,"AAAA") -> 2019 | F143: Saida. Benahmina | G143: =VLOOKUP([1]Frontal!$F143,[1]Liste!A:C,3,0) -> 9968 | H143: Cathy.Dhainaut | I143: SEBR | J143: Cathy.Dhainaut | K143: 4939031057 | L143: =VLOOKUP([1]Frontal!$K143,[1]REF!B:C,2,0) -> Pastilles adhésives ovales VERT | M143: Consommable | N143: 10 | O143: =VLOOKUP([1]Frontal!$K143,[1]REF!B:D,3,0) -> 7.61 | P143: 1 | Q143: =[1]Frontal!$P$3:$P$165*[1]Frontal!$O$3:$O$165 -> 7.61 | R143: 2019-03-15 | S143: OK
A144: 142 | B144: 2019-03-13 | C144: 11 | D144: =TEXT([1]Frontal!$B$3:$B$165,"MMMM") -> mars | E144: =TEXT([1]Frontal!$B$3:$B$165,"AAAA") -> 2019 | F144: Saida. Benahmina | G144: =VLOOKUP([1]Frontal!$F144,[1]Liste!A:C,3,0) -> 9968 | H144: Cathy.Dhainaut | I144: SEBR | J144: Cathy.Dhainaut | K144: 4939031056 | L144: =VLOOKUP([1]Frontal!$K144,[1]REF!B:C,2,0) -> Pastilles adhésives ovales JAUNE | M144: Consommable | N144: 10 | O144: =VLOOKUP([1]Frontal!$K144,[1]REF!B:D,3,0) -> 8.09 | P144: 5 | Q144: =[1]Frontal!$P$3:$P$165*[1]Frontal!$O$3:$O$165 -> 40.45 | R144: 2019-03-15 | S144: OK
A145: 143 | B145: 2019-03-13 | C145: 11 | D145: =TEXT([1]Frontal!$B$3:$B$165,"MMMM") -> mars | E145: =TEXT([1]Frontal!$B$3:$B$165,"AAAA") -> 2019 | F145: Saida. Benahmina | G145: =VLOOKUP([1]Frontal!$F145,[1]Liste!A:C,3,0) -> 9968 | H145: Cathy.Dhainaut | I145: SEBR | J145: Cathy.Dhainaut | K145: 4939031057 | L145: =VLOOKUP([1]Frontal!$K145,[1]REF!B:C,2,0) -> Pastilles adhésives ovales VERT | M145: Consommable | N145: 10 | O145: =VLOOKUP([1]Frontal!$K145,[1]REF!B:D,3,0) -> 7.61 | P145: 10 | Q145: =[1]Frontal!$P$3:$P$165*[1]Frontal!$O$3:$O$165 -> 76.1 | R145: 2019-03-14 | S145: OK
A146: 144 | B146: 2019-03-13 | C146: 11 | D146: =TEXT([1]Frontal!$B$3:$B$165,"MMMM") -> mars | E146: =TEXT([1]Frontal!$B$3:$B$165,"AAAA") -> 2019 | F146: Cédric. Longatte | G146: =VLOOKUP([1]Frontal!$F146,[1]Liste!A:C,3,0) -> 9967 | H146: Michael. Defontaine | I146: CAP | J146: Michael. Defontaine | K146: P675113201 | L146: =VLOOKUP([1]Frontal!$K146,[1]REF!B:C,2,0) -> CLE POLYGONALE DOUBLE A CLIQUET DE 10 X11 LG.TOT:130 | M146: Outillage | N146: 10 | O146: =VLOOKUP([1]Frontal!$K146,[1]REF!B:D,3,0) -> 6.11 | P146: 2 | Q146: =[1]Frontal!$P$3:$P$165*[1]Frontal!$O$3:$O$165 -> 12.22 | R146: 2019-03-15 | S146: OK
A147: 145 | B147: 2019-03-13 | C147: 11 | D147: =TEXT([1]Frontal!$B$3:$B$165,"MMMM") -> mars | E147: =TEXT([1]Frontal!$B$3:$B$165,"AAAA") -> 2019 | F147: Cédric. Longatte | G147: =VLOOKUP([1]Frontal!$F147,[1]Liste!A:C,3,0) -> 9967 | H147: Michael. Defontaine | I147: CAP | J147: Michael. Defontaine | K147: P675113701 | L147: =VLOOKUP([1]Frontal!$K147,[1]REF!B:C,2,0) -> CLE POLYGONALE DOUBLE A CLIQUET DE 12 X13 | M147: Outillage | N147: 10 | O147: =VLOOKUP([1]Frontal!$K147,[1]REF!B:D,3,0) -> 12 | P147: 2 | Q147: =[1]Frontal!$P$3:$P$165*[1]Frontal!$O$3:$O$165 -> 24 | R147: 2019-03-15 | S147: OK
A148: 146 | B148: 2019-03-13 | C148: 11 | D148: =TEXT([1]Frontal!$B$3:$B$165,"MMMM") -> mars | E148: =TEXT([1]Frontal!$B$3:$B$165,"AAAA") -> 2019 | F148: Aka.Amany. Patrice | G148: =VLOOKUP([1]Frontal!$F148,[1]Liste!A:C,3,0) -> 9962 | H148: Séverine. Leborgne | I148: EPF | J148: Séverine. Leborgne | K148: R100646629 | L148: =VLOOKUP([1]Frontal!$K148,[1]REF!B:C,2,0) -> PAIRE GANTS T7 MASTIC laine blanc liseré Jaune | M148: EPI | N148: 10 | O148: =VLOOKUP([1]Frontal!$K148,[1]REF!B:D,3,0) -> 0.6 | P148: 200 | Q148: =[1]Frontal!$P$3:$P$165*[1]Frontal!$O$3:$O$165 -> 120 | R148: 2019-03-15 | S148: OK
A149: 147 | B149: 2019-03-13 | C149: 11 | D149: =TEXT([1]Frontal!$B$3:$B$165,"MMMM") -> mars | E149: =TEXT([1]Frontal!$B$3:$B$165,"AAAA") -> 2019 | F149: Aka.Amany. Patrice | G149: =VLOOKUP([1]Frontal!$F149,[1]Liste!A:C,3,0) -> 9962 | H149: Séverine. Leborgne | I149: EPF | J149: Séverine. Leborgne | K149: R100646631 | L149: =VLOOKUP([1]Frontal!$K149,[1]REF!B:C,2,0) -> PAIRE GANTS T9 MASTIC laine blanc liseré VERT | M149: EPI | N149: 10 | O149: =VLOOKUP([1]Frontal!$K149,[1]REF!B:D,3,0) -> 0.6 | P149: 300 | Q149: =[1]Frontal!$P$3:$P$165*[1]Frontal!$O$3:$O$165 -> 180 | R149: 2019-03-15 | S149: OK
A150: 148 | B150: 2019-03-13 | C150: 11 | D150: =TEXT([1]Frontal!$B$3:$B$165,"MMMM") -> mars | E150: =TEXT([1]Frontal!$B$3:$B$165,"AAAA") -> 2019 | F150: Aka.Amany. Patrice | G150: =VLOOKUP([1]Frontal!$F150,[1]Liste!A:C,3,0) -> 9962 | H150: Séverine. Leborgne | I150: EPF | J150: Séverine. Leborgne | K150: R100702879 | L150: =VLOOKUP([1]Frontal!$K150,[1]REF!B:C,2,0) -> Testeur allume cigare pour automobile | M150: Informatique | N150: 10 | O150: =VLOOKUP([1]Frontal!$K150,[1]REF!B:D,3,0) -> 12.68 | P150: 5 | Q150: =[1]Frontal!$P$3:$P$165*[1]Frontal!$O$3:$O$165 -> 63.4 | R150: 2019-03-14 | S150: OK
A151: 149 | B151: 2019-03-13 | C151: 11 | D151: =TEXT([1]Frontal!$B$3:$B$165,"MMMM") -> mars | E151: =TEXT([1]Frontal!$B$3:$B$165,"AAAA") -> 2019 | F151: Sandra. Folmer | G151: =VLOOKUP([1]Frontal!$F151,[1]Liste!A:C,3,0) -> 9964 | H151: Daniel. Szekula | I151: Tracage | J151: Daniel. Szekula | K151: R100742802 | L151: =VLOOKUP([1]Frontal!$K151,[1]REF!B:C,2,0) -> Bombe aérosol 650 ml Dustergreen pour tracage | M151: Consommable | N151: 10 | O151: =VLOOKUP([1]Frontal!$K151,[1]REF!B:D,3,0) -> 16.14 | P151: 4 | Q151: =[1]Frontal!$P$3:$P$165*[1]Frontal!$O$3:$O$165 -> 64.56 | S151: NOK
A152: 150 | B152: 2019-03-13 | C152: 11 | D152: =TEXT([1]Frontal!$B$3:$B$165,"MMMM") -> mars | E152: =TEXT([1]Frontal!$B$3:$B$165,"AAAA") -> 2019 | F152: Aka.Amany. Patrice | G152: =VLOOKUP([1]Frontal!$F152,[1]Liste!A:C,3,0) -> 9962 | H152: Abdelkadder Tayebi | I152: EPF | J152: Abdelkadder Tayebi | K152: R100611739 | L152: =VLOOKUP([1]Frontal!$K152,[1]REF!B:C,2,0) -> Lampe de poche GISS | M152: Outillage | N152: 10 | O152: =VLOOKUP([1]Frontal!$K152,[1]REF!B:D,3,0) -> 14.31 | P152: 5 | Q152: =[1]Frontal!$P$3:$P$165*[1]Frontal!$O$3:$O$165 -> 71.55 | R152: 2019-03-13 | S152: OK
A153: 151 | B153: 2019-03-13 | C153: 11 | D153: =TEXT([1]Frontal!$B$3:$B$165,"MMMM") -> mars | E153: =TEXT([1]Frontal!$B$3:$B$165,"AAAA") -> 2019 | F153: Saida. Benahmina | G153: =VLOOKUP([1]Frontal!$F153,[1]Liste!A:C,3,0) -> 9968 | H153: Christine. Tamburri | I153: AQM | J153: Christine. Tamburri | K153: 4939031060 | L153: =VLOOKUP([1]Frontal!$K153,[1]REF!B:C,2,0) -> Pastilles adhésives ovales ORANGE | M153: Consommable | N153: 10 | O153: =VLOOKUP([1]Frontal!$K153,[1]REF!B:D,3,0) -> 7.44 | P153: 10 | Q153: =[1]Frontal!$P$3:$P$165*[1]Frontal!$O$3:$O$165 -> 74.4 | R153: 2019-03-15 | S153: OK
A154: 152 | B154: 2019-03-13 | C154: 11 | D154: =TEXT([1]Frontal!$B$3:$B$165,"MMMM") -> mars | E154: =TEXT([1]Frontal!$B$3:$B$165,"AAAA") -> 2019 | F154: Guillaume. Jeffard | G154: =VLOOKUP([1]Frontal!$F154,[1]Liste!A:C,3,0) -> 9900 | H154: Guillaume. Jeffard | I154: GEO | J154: Stephane Dumont | K154: R100518608 | L154: =VLOOKUP([1]Frontal!$K154,[1]REF!B:C,2,0) -> Chaussures H BASSES CUIR PLEINE FLEUR DE VACHETTE Taille 45 | M154: EPI | N154: 10 | O154: =VLOOKUP([1]Frontal!$K154,[1]REF!B:D,3,0) -> 42.83 | P154: 1 | Q154: =[1]Frontal!$P$3:$P$165*[1]Frontal!$O$3:$O$165 -> 42.83 | S154: NOK
A155: 153 | B155: 2019-03-14 | C155: 11 | D155: =TEXT([1]Frontal!$B$3:$B$165,"MMMM") -> mars | E155: =TEXT([1]Frontal!$B$3:$B$165,"AAAA") -> 2019 | F155: Dpt Qualité | G155: =VLOOKUP([1]Frontal!$F155,[1]Liste!A:C,3,0) -> 9961 | H155: Valerie. Masson | I155: Dpt Qualité | J155: Valerie. Masson | K155: P976730900 | L155: =VLOOKUP([1]Frontal!$K155,[1]REF!B:C,2,0) -> Agitateur ou cuillère | M155: Consommable | N155: 10 | O155: =VLOOKUP([1]Frontal!$K155,[1]REF!B:D,3,0) -> 10 | P155: 1 | Q155: =[1]Frontal!$P$3:$P$165*[1]Frontal!$O$3:$O$165 -> 10 | R155: 2019-03-14 | S155: OK
A156: 154 | B156: 2019-03-14 | C156: 11 | D156: =TEXT([1]Frontal!$B$3:$B$165,"MMMM") -> mars | E156: =TEXT([1]Frontal!$B$3:$B$165,"AAAA") -> 2019 | F156: Dpt Qualité | G156: =VLOOKUP([1]Frontal!$F156,[1]Liste!A:C,3,0) -> 9961 | H156: JP. Masson | I156: Dpt Qualité | J156: Stock | K156: P976730900 | L156: =VLOOKUP([1]Frontal!$K156,[1]REF!B:C,2,0) -> Agitateur ou cuillère | M156: Consommable | N156: 10 | O156: =VLOOKUP([1]Frontal!$K156,[1]REF!B:D,3,0) -> 10 | P156: 2 | Q156: =[1]Frontal!$P$3:$P$165*[1]Frontal!$O$3:$O$165 -> 20 | S156: NOK
A157: 155 | B157: 2019-03-14 | C157: 11 | D157: =TEXT([1]Frontal!$B$3:$B$165,"MMMM") -> mars | E157: =TEXT([1]Frontal!$B$3:$B$165,"AAAA") -> 2019 | F157: Saida. Benahmina | G157: =VLOOKUP([1]Frontal!$F157,[1]Liste!A:C,3,0) -> 9968 | H157: Saida. Benahmina | I157: CSC | J157: Christine. Tamburri | K157: R100646629 | L157: =VLOOKUP([1]Frontal!$K157,[1]REF!B:C,2,0) -> PAIRE GANTS T7 MASTIC laine blanc liseré Jaune | M157: EPI | N157: 10 | O157: =VLOOKUP([1]Frontal!$K157,[1]REF!B:D,3,0) -> 0.6 | P157: 200 | Q157: =[1]Frontal!$P$3:$P$165*[1]Frontal!$O$3:$O$165 -> 120 | S157: NOK
A158: 156 | B158: 2019-03-14 | C158: 11 | D158: =TEXT([1]Frontal!$B$3:$B$165,"MMMM") -> mars | E158: =TEXT([1]Frontal!$B$3:$B$165,"AAAA") -> 2019 | F158: Saida. Benahmina | G158: =VLOOKUP([1]Frontal!$F158,[1]Liste!A:C,3,0) -> 9968 | H158: Saida. Benahmina | I158: CSC | J158: Christine. Tamburri | K158: R100646630 | L158: =VLOOKUP([1]Frontal!$K158,[1]REF!B:C,2,0) -> PAIRE GANTS T8 MASTIC ROUGE | M158: EPI | N158: 10 | O158: =VLOOKUP([1]Frontal!$K158,[1]REF!B:D,3,0) -> 0.6 | P158: 10 | Q158: =[1]Frontal!$P$3:$P$165*[1]Frontal!$O$3:$O$165 -> 6 | S158: NOK
A159: 157 | B159: 2019-03-14 | C159: 11 | D159: =TEXT([1]Frontal!$B$3:$B$165,"MMMM") -> mars | E159: =TEXT([1]Frontal!$B$3:$B$165,"AAAA") -> 2019 | F159: Sandra. Folmer | G159: =VLOOKUP([1]Frontal!$F159,[1]Liste!A:C,3,0) -> 9964 | H159: Sandra. Folmer | I159: CA Analyse | J159: Sandra. Folmer | K159: R100583446 | L159: =VLOOKUP([1]Frontal!$K159,[1]REF!B:C,2,0) -> Parka HV Jaune Taille XL | M159: EPI | N159: 10 | O159: =VLOOKUP([1]Frontal!$K159,[1]REF!B:D,3,0) -> 32.02 | P159: 1 | Q159: =[1]Frontal!$P$3:$P$165*[1]Frontal!$O$3:$O$165 -> 32.02 | R159: 2019-03-14 | S159: OK
A160: 158 | B160: 2019-03-15 | C160: 11 | D160: =TEXT([1]Frontal!$B$3:$B$165,"MMMM") -> mars | E160: =TEXT([1]Frontal!$B$3:$B$165,"AAAA") -> 2019 | F160: Saida. Benahmina | G160: =VLOOKUP([1]Frontal!$F160,[1]Liste!A:C,3,0) -> 9968 | H160: Saida. Benahmina | I160: PLS | J160: Régis. Dincq | K160: R100625297 | L160: =VLOOKUP([1]Frontal!$K160,[1]REF!B:C,2,0) -> Gilet réfléchissant L | M160: EPI | N160: 10 | O160: =VLOOKUP([1]Frontal!$K160,[1]REF!B:D,3,0) -> 5.77 | P160: 3 | Q160: =[1]Frontal!$P$3:$P$165*[1]Frontal!$O$3:$O$165 -> 17.31 | R160: 2019-03-15 | S160: OK
A161: 159 | B161: 2019-03-15 | C161: 11 | D161: =TEXT([1]Frontal!$B$3:$B$165,"MMMM") -> mars | E161: =TEXT([1]Frontal!$B$3:$B$165,"AAAA") -> 2019 | F161: Saida. Benahmina | G161: =VLOOKUP([1]Frontal!$F161,[1]Liste!A:C,3,0) -> 9968 | H161: Saida. Benahmina | I161: PLS | J161: Régis. Dincq | K161: R100625298 | L161: =VLOOKUP([1]Frontal!$K161,[1]REF!B:C,2,0) -> Gilet réfléchissant XL | M161: EPI | N161: 10 | O161: =VLOOKUP([1]Frontal!$K161,[1]REF!B:D,3,0) -> 5.77 | P161: 2 | Q161: =[1]Frontal!$P$3:$P$165*[1]Frontal!$O$3:$O$165 -> 11.54 | R161: 2019-03-15 | S161: OK
A162: 160 | B162: 2019-03-15 | C162: 11 | D162: =TEXT([1]Frontal!$B$3:$B$165,"MMMM") -> mars | E162: =TEXT([1]Frontal!$B$3:$B$165,"AAAA") -> 2019 | F162: Saida. Benahmina | G162: =VLOOKUP([1]Frontal!$F162,[1]Liste!A:C,3,0) -> 9968 | H162: Saida. Benahmina | I162: PLS | J162: Régis. Dincq | K162: X957596004 | L162: =VLOOKUP([1]Frontal!$K162,[1]REF!B:C,2,0) -> Semelle T45 | M162: EPI | N162: 10 | O162: =VLOOKUP([1]Frontal!$K162,[1]REF!B:D,3,0) -> 0.64 | P162: 1 | Q162: =[1]Frontal!$P$3:$P$165*[1]Frontal!$O$3:$O$165 -> 0.64 | R162: 2019-03-15 | S162: OK
A163: 161 | B163: 2019-03-15 | C163: 11 | D163: =TEXT([1]Frontal!$B$3:$B$165,"MMMM") -> mars | E163: =TEXT([1]Frontal!$B$3:$B$165,"AAAA") -> 2019 | F163: Sandra. Folmer | G163: =VLOOKUP([1]Frontal!$F163,[1]Liste!A:C,3,0) -> 9964 | H163: Daniel. Szekula | I163: Tracage | J163: Fabrice. Krenz | K163: R100526533 | L163: =VLOOKUP([1]Frontal!$K163,[1]REF!B:C,2,0) -> BIDON 20L DT 492 (D:1,04) Nettoyage Bat Tracage | M163: Ménager | N163: 10 | O163: =VLOOKUP([1]Frontal!$K163,[1]REF!B:D,3,0) -> 42.4 | P163: 1 | Q163: =[1]Frontal!$P$3:$P$165*[1]Frontal!$O$3:$O$165 -> 42.4 | S163: NOK
A164: 162 | B164: 2019-03-15 | C164: 11 | D164: =TEXT([1]Frontal!$B$3:$B$165,"MMMM") -> mars | E164: =TEXT([1]Frontal!$B$3:$B$165,"AAAA") -> 2019 | F164: Dpt Qualité | G164: =VLOOKUP([1]Frontal!$F164,[1]Liste!A:C,3,0) -> 9961 | H164: JP. Masson | I164: Dpt Qualité | J164: Abdelkrim BERDEG | K164: R100583446 | L164: =VLOOKUP([1]Frontal!$K164,[1]REF!B:C,2,0) -> Parka HV Jaune Taille XL | M164: EPI | N164: 10 | O164: =VLOOKUP([1]Frontal!$K164,[1]REF!B:D,3,0) -> 32.02 | P164: 1 | Q164: =[1]Frontal!$P$3:$P$165*[1]Frontal!$O$3:$O$165 -> 32.02 | S164: NOK
A165: 163 | B165: 2019-03-15 | C165: 11 | D165: =TEXT([1]Frontal!$B$3:$B$165,"MMMM") -> mars | E165: =TEXT([1]Frontal!$B$3:$B$165,"AAAA") -> 2019 | F165: Dpt Qualité | G165: =VLOOKUP([1]Frontal!$F165,[1]Liste!A:C,3,0) -> 9961 | H165: JP. Masson | I165: Dpt Qualité | J165: Stock | K165: P955157073 | L165: =VLOOKUP([1]Frontal!$K165,[1]REF!B:C,2,0) -> Gobelet | M165: Consommable | N165: =LEN(K165) -> 10 | O165: =VLOOKUP([1]Frontal!$K165,[1]REF!B:D,3,0) -> 1 | P165: 10 | Q165: =[1]Frontal!$P$3:$P$165*[1]Frontal!$O$3:$O$165 -> 10 | R165: 2019-03-15 | S165: =IF(R165,"OK","NOK") -> OK
A166: 164 | B166: 19/03/2019 | F166: Cédric. Longatte | G166: 9968 | H166: Bloqueur | I166: Patrice. Aka.Amany | J166: Bureautique
A167: 165 | B167: 19/03/2019 | F167: Anne Sophie. Pater | G167: 9967 | H167: AQM | I167: Patrice. Aka.Amany | J167: Consommable

Sheet Liste
A1: Responsable | C1: CF | E1: Demandeur | G1: Atelier | I1: Reference | K1: Désignation | M1: Prix | O1: Catégorie
A2: Saida. Benahmina | C2: 9968 | E2: Patrice. Aka.Amany | G2: AQM | I2: P955157073 | K2: Gobelet | M2: 1 | O2: EPI
A3: Cédric. Longatte | C3: 9967 | E3: Abdelkadder Tayebi | G3: Bloqueur | I3: R100279065 | K3: Aérosol Dégraissant 650ml | M3: 5.42 | O3: Bureautique
A4: Anne Sophie. Pater | C4: 9961 | E4: Abdelkrim BERDEG | G4: CA Analyse | I4: R100329826 | K4: Aérosol AIRBUL 650ml | M4: 1.84 | O4: Consommable
A5: Aka.Amany. Patrice | C5: 9962 | E5: Cathy.Dhainaut | G5: CAP | I5: P976730900 | K5: Agitateur ou cuillère | M5: 10 | O5: DO
A6: Dpt Qualité | C6: 9961 | E6: Cédric. Longatte | G6: CSC | I6: R100625728 | K6: Telephone | M6: 90.57 | O6: Electroménager
A7: Loic. L-B | C7: 9961 | E7: Christian. Kaliszewski | G7: Dpt Qualité | I7: R100625731 | K7: Alimentation téléphone | M7: 8.31 | O7: Habillement
A8: Vincent. Loquet | C8: 9978 | E8: Christine. Tamburri | G8: EPF | I8: R100503609 | K8: Blouson Matelassé Taille L 44/46-2 | M8: 21.11 | O8: Informatique
A9: Valerie. Masson | C9: 9961 | E9: Christophe. Mikolaczak | G9: G. Bruit | I9: R100503608 | K9: Blouson Matelassé Taille M 40/42-1 | M9: 18.5 | O9: Ménager
A10: Sandra. Folmer | C10: 9964 | E10: Cindy. Thorez | G10: GEO | I10: R100503610 | K10: Blouson Matelassé Taille XL 48/50-3 | M10: 20.95 | O10: Mobilier
A11: Guillaume. Jeffard | C11: 9900 | E11: Daniel. Jouy | G11: Métrologie | I11: R100437384 | K11: Blouson Matelassé Taille | M11: 33.32 | O11: Outillage
E12: Daniel. Szekula | G12: PLS | I12: R100503611 | K12: Blouson Matelassé Taille XXL 52/54-4 | M12: 22.11 | O12: Pile
E13: D-HELFT.Peggy | G13: QPN | I13: R100503612 | K13: Blouson Matelassé Taille XXXL 56/58-5 | M13: 18.48 | O13: Quincaillerie
E14: Eric. Francois | G14: Reprographie | I14: R100503613 | K14: Blouson Matelassé Taille XXXXL-T6 | M14: 18.48
E15: Fabrice. Richard | G15: SEBR | I15: X951506724 | K15: Bouchon D'oreille | M15: 1.01
E16: Fanny. Drapier | G16: Traçage | I16: X951506719 | K16: Bouchon D'oreille Arceaux | M16: 2.4
E17: Francois. Hanne | I17: X951506725 | K17: Bouchon D'oreille Ficelle | M17: 1.01
E18: Jean-Luc Pawlak | I18: R100305424 | K18: Carte SD | M18: 22.5
E19: Laurent. Peru | I19: R100582895 | K19: casquette de sécurité | M19: 16.82
E20: Michael. Defontaine | I20: X955973021 | K20: Ceinture de combinaison | M20: 2.46
E21: Nadine. Cauchy | I21: R100625730 | K21: Chargeur téléphone | M21: 19.51
E22: Olivier. Foulon | I22: R100201611 | K22: Chaussures H TOILEES TYPE MOCASSIN Taille 39 | M22: 27.2
E23: Pascal. Steu | I23: R100201614 | K23: Chaussures H TOILEES TYPE MOCASSIN Taille 41 | M23: 27.2
E24: Peggy. D-Helft | I24: R100201616 | K24: Chaussures H TOILEES TYPE MOCASSIN Taille 42 | M24: 27.2
E25: Régis. Dincq | I25: R100364314 | K25: Chaussures F TENNIS EN CROUPON VELOURS ROUGE Taille 36 | M25: 33.4
E26: Sandra. Folmer | I26: R100364315 | K26: Chaussures F TENNIS EN CROUPON VELOURS ROUGE Taille 37 | M26: 33.4
E27: Sebastien. Taisne | I27: R100364320 | K27: Chaussures F TENNIS EN CROUPON VELOURS ROUGE Taille 40 | M27: 33.2
E28: Séverine. Leborgne | I28: R100518514 | K28: Chaussures F MONTANTES CUIR FLEUR NOIR Taille 35 | M28: 44.74
E29: Stephane. Dumont | I29: R100518515 | K29: Chaussures F MONTANTES CUIR FLEUR NOIR Taille 36 | M29: 42.13
E30: Stock | I30: R100518517 | K30: Chaussures F MONTANTES CUIR FLEUR NOIR Taille 38 | M30: 42.13
E31: Valerie. Masson | I31: R100518520 | K31: Chaussures F MONTANTES CUIR FLEUR NOIR Taille 41 | M31: 42.13
E32: Vincent. Loquet | I32: R100518521 | K32: Chaussures F MONTANTES CUIR FLEUR NOIR Taille 42 | M32: 42.13
I33: R100518605 | K33: Chaussures H BASSES CUIR PLEINE FLEUR DE VACHETTE Taille 42 | M33: 41.49
I34: R100518606 | K34: Chaussures H BASSES CUIR PLEINE FLEUR DE VACHETTE Taille 43 | M34: 43.45
I35: R100518608 | K35: Chaussures H BASSES CUIR PLEINE FLEUR DE VACHETTE Taille 45 | M35: 42.83
I36: R100518607 | K36: Chaussures H BASSES CUIR PLEINE FLEUR DE VACHETTE Taille 44 | M36: 42.09
I37: R100518616 | K37: Chaussures H VILLE AMAGNETIQUES CUIR PLEINE FLEUR Taille 40 | M37: 35.51
I38: R100518618 | K38: Chaussures H VILLE AMAGNETIQUES CUIR PLEINE FLEUR Taille 42 | M38: 41.04
I39: R100518619 | K39: Chaussures H VILLE AMAGNETIQUES CUIR PLEINE FLEUR Taille 43 | M39: 36.27
I40: R100518620 | K40: Chaussures H VILLE AMAGNETIQUES CUIR PLEINE FLEUR Taille 44 | M40: 41.04
I41: R100518626 | K41: Chaussures H VILLE TYPE MOCASSIN CUIR PLEINE FLEUR Taille 40 | M41: 33.73
I42: R100518628 | K42: Chaussures H VILLE TYPE MOCASSIN CUIR PLEINE FLEUR Taille 42 | M42: 33.4
I43: R100518630 | K43: Chaussures H VILLE TYPE MOCASSIN CUIR PLEINE FLEUR Taille 44 | M43: 33.02
I44: R100518636 | K44: Chaussures H MONTANTES VELOUR Taille 40 | M44: 31.5
I45: R100518645 | K45: Chaussures TYPE BASKET H CUIR VELOURS PERFORE Taille 40 | M45: 26.59
I46: R100518646 | K46: Chaussures TYPE BASKET H CUIR VELOURS PERFORE Taille 41 | M46: 26.59
I47: R100549968 | K47: Chaussures FEMME OPERATEUR ET VILLE CUIR NUBUCK Taille 36 | M47: 40.89
I48: R100549970 | K48: Chaussures FEMME OPERATEUR ET VILLE CUIR NUBUCK Taille 38 | M48: 40.89
I49: R100549971 | K49: Chaussures FEMME OPERATEUR ET VILLE CUIR NUBUCK Taille 39 | M49: 41.18
I50: R100601454 | K50: Chaussures H BASSES CUIR FLEUR NOIR HYDROFUGE Taille 42 | M50: 20.8
I51: R100643531 | K51: Chaussures H CUIR PLEINE FLEUR 200J BATA Taille 46 | M51: 49.31
I52: R100708847 | K52: Chaussures H E-Sport basses noir et rouge Taille 40 | M52: 51.27
I53: R100708858 | K53: Chaussures H E-Sport basses noir et rouge Taille 42 | M53: 51.27
I54: R100708859 | K54: Chaussures H E-Sport basses noir et rouge Taille 43 | M54: 51.73
I55: R100708860 | K55: Chaussures H E-Sport basses noir et rouge Taille 44 | M55: 51.27
I56: R100708861 | K56: Chaussures H E-Sport basses noir et rouge Taille 45 | M56: 51.27
I57: R100518639 | K57: Chaussures H MONTANTES VELOUR Taille 43 | M57: 27.22
I58: R100518516 | K58: Chaussures F MONTANTES CUIR FLEUR NOIR Taille 37 | M58: 42.13
I59: R100601448 | K59: Chaussures H BASSES CUIR FLEUR NOIR HYDROFUGE Taille 38 | M59: 20.8
I60: R100518518 | K60: Chaussures F MONTANTES CUIR FLEUR NOIR Taille 39 | M60: 42.13
I61: R100518519 | K61: Chaussures F MONTANTES CUIR FLEUR NOIR Taille 40 | M61: 42.13
I62: R100518520 | K62: Chaussures F MONTANTES CUIR FLEUR NOIR Taille 41 | M62: 42.13
I63: R100518648 | K63: ChaussuresTYPE BASKET H CUIR VELOURS Taille 43 | M63: 34.6
I64: R100601459 | K64: Chaussures H BASSES CUIR FLEUR NOIR HYDROFUGE Taille 43 | M64: 20.8
I65: R100201619 | K65: Chaussures H TOILEES TYPE MOCASSIN Taille 44 | M65: 27.2
I66: R100518649 | K66: Chaussures TYPE BASKET H CUIR VELOURS Taille 44 | M66: 30.73
I67: R100601460 | K67: Chaussures H BASSES CUIR FLEUR NOIR HYDROFUGE Taille 44 | M67: 20.8
I68: R100601464 | K68: Chaussures H BASSES CUIR FLEUR NOIR HYDROFUGE Taille 45 | M68: 20.8
I69: R100527919 | K69: Chaussures FEMME OPERATEUR ET VILLE CUIR PLEINE FLEUR Taille 40 | M69: 38.44
I70: R100527920 | K70: Chaussures FEMME OPERATEUR ET VILLE CUIR PLEINE FLEUR Taille 41 | M70: 33.76
I71: R100527921 | K71: Chaussures FEMME OPERATEUR ET VILLE CUIR PLEINE FLEUR Taille 42 | M71: 42.28
I72: R100330333 | K72: CLAVIER AZERTY HP NOIR/SILVER- USB | M72: 12.18
I73: R100691393 | K73: Clés USB | M73: 17.5
I74: R100346597 | K74: Dose lavande | M74: 0.22
I75: P887100000 | K75: ENROULEUR EQUILIBREUR MECANIQUE DE 60 GRAM | M75: 3.05
I76: R100386808 | K76: PAIRE GANTS T7 AMBIDEXTRE MAT. NYLON BLANC | M76: 2.37
I77: R100386809 | K77: PAIRE GANTS T8 AMBIDEXTRE MAT. NYLON BLANC | M77: 2.37
I78: R100646632 | K78: PAIRE GANTS T10 MASTIC | M78: 0.55
I79: R100150295 | K79: PAIRE GANTS T6 TRICOTE 3FILS COTON BLANC | M79: 0.28
I80: R100150296 | K80: PAIRE GANTS T7 TRICOTE 5DGTS 3FILS COTON BLEU | M80: 0.27
I81: R100646629 | K81: PAIRE GANTS T7 MASTIC laine blanc liseré Jaune | M81: 0.6
I82: R100646631 | K82: PAIRE GANTS T9 MASTIC laine blanc liseré VERT | M82: 0.6
I83: R100625297 | K83: Gilet réfléchissant L | M83: 5.77
I84: R100625296 | K84: Gilet réfléchissant M | M84: 5.77
I85: R100625298 | K85: Gilet réfléchissant XL | M85: 5.77
I86: R100625299 | K86: Gilet réfléchissant XXL | M86: 5.77
I87: P955157073 | K87: Gobelet | M87: 1
I88: E139000222 | K88: Jeu de Cales 1 à 6 Mm | M88: 44.5
I89: R100302596 | K89: Lacets à chaussures | M89: 0.98
I90: R100155495 | K90: Lampe de poche | M90: 21.7
I91: R100611739 | K91: Lampe de poche GISS | M91: 14.31
I92: R100666592 | K92: Lunette Sécurité | M92: 3
I93: P397715306 | K93: Manche a Balai | M93: 0.64
I94: R100309410 | K94: Marqueur | M94: 10
I95: R100474535 | K95: Marqueur VERT | M95: 1.98
I96: P675113201 | K96: CLE POLYGONALE DOUBLE A CLIQUET DE 10 X11 LG.TOT:130 | M96: 6.11
I97: P675113701 | K97: CLE POLYGONALE DOUBLE A CLIQUET DE 12 X13 | M97: 12
I98: T510523310 | K98: Papier A3 | M98: 16.08
I99: R100503613 | K99: Parka HV Jaune Taille | M99: 18.5
I100: R100583445 | K100: Parka HV Jaune Taille L | M100: 33.69
I101: R100583444 | K101: Parka HV Jaune Taille M | M101: 44.22
I102: R100583446 | K102: Parka HV Jaune Taille XL | M102: 32.02
I103: R100583447 | K103: Parka HV Jaune Taille XXL | M103: 32
I104: R100583448 | K104: Parka HV Jaune Taille XXXL | M104: 32
I105: X771122001 | K105: Piles Lithium 3,6V | M105: 3.4
I106: P931112000 | K106: Pinceau plat | M106: 0.14
I107: R100115468 | K107: Pulvérisateur | M107: 7.21
I108: R100627035 | K108: Radiateur | M108: 66.3
I109: R100498091 | K109: Rallonge Multiprises | M109: 15.3
I110: X686932001 | K110: Réfrigérateur | M110: 236
I111: P761012000 | K111: Réglet flexible | M111: 0.82
I112: R100702397 | K112: Rouleau sopalin bleu | M112: 405
I113: T533011200 | K113: Ruban Adhésif | M113: 0.59
I114: P958139203 | K114: SAC POUBELLE 30 L | M114: 18.75
I115: X957592204 | K115: Semelle T38 | M115: 0.65
I116: X957592604 | K116: Semelle T39 | M116: 0.65
I117: X957593104 | K117: Semelle T40 | M117: 0.65
I118: X957593704 | K118: Semelle T41 | M118: 0.65
I119: X957594303 | K119: Semelle T42 | M119: 0.65
I120: X957595004 | K120: Semelle T43 | M120: 0.64
I121: X957596004 | K121: Semelle T45 | M121: 0.64
I122: X957596403 | K122: Semelle T46 | M122: 0.65
I123: R100159016 | K123: Soufflette de Sécurité | M123: 12
I124: R100346330 | K124: Souris HP | M124: 9.4
I125: X971166472 | K125: Stylos fibre noir | M125: 73.5
I126: R100742478 | K126: Table rectangulaire
I127: R100625728 | K127: Téléphone | M127: 90.57
I128: P672410074 | K128: Tournevis 2,5X50 | M128: 1.9
I129: 4939031056 | K129: Pastilles adhésives ovales JAUNE | M129: 8.09
I130: 4939031060 | K130: Pastilles adhésives ovales ORANGE | M130: 7.44
I131: 4939031057 | K131: Pastilles adhésives ovales VERT | M131: 7.61
I132: R100677758 | K132: Brassard vert marquage : Qualité | M132: 3.2
I133: R100709481 | K133: Toner Kyocera TK-3160 pour P3045DN | M133: 84.19
I134: R000111100 | K134: Piles LR06 | M134: 0.155
I135: X771101008 | K135: Piles LR03 | M135: 0.124
I136: R100090222 | K136: Essuyeurs.Kimwipes | M136: 40.45
I137: R100646630 | K137: PAIRE GANTS T8 MASTIC ROUGE | M137: 0.6
I138: R100341937 | K138: PAIRE GANTS T10 POLYAMIDE MOUSSE DE NITRILE BLANC | M138: 1.06
I139: R100341934 | K139: PAIRE GANTS T8 POLYAMIDE MOUSSE DE NITRILE BLEU | M139: 1.07
I140: R100289692 | K140: RUBAN ADHESIF DOUBLE FACE ROUGE | M140: 13.4
I141: R100150296 | K141: PAIRE GANTS T7 Lisere rouge | M141: 0.27
I142: R100023101 | K142: PERCEUSE R.ANGLE VARIAT | M142: 166.47
I143: T533200450 | K143: RUBAN ADHESIF PVC PLASTIFIE TRANSPARENT | M143: 1.22
I144: R100329823 | K144: Bombe dégrippant lubrifiant | M144: 2.06
I145: T803900031 | K145: Bombre Visunet néttoyant Ecran | M145: 4.71
I146: T843387023 | K146: Bombe Révelateur Blanc | M146: 6.01
I147: R100341930 | K147: PAIRE GANTS NYLON ENDIUTS NITRILE LISERE BLEU | M147: 1.05
I148: R100364321 | K148: Chaussures F TENNIS EN CROUPON VELOURS ROUGE Taille 41 | M148: 33.4
I149: R100518518 | K149: Chaussures F TENNIS EN CROUPON VELOURS ROUGE Taille 39 | M149: 42.13
I150: P645136004 | K150: Pince coupante | M150: 10.47
I151: P671166600 | K151: Pince multiprise | M151: 9.54
I152: R100619575 | K152: Surlunettes | M152: 6.07
I153: R100028719 | K153: Rouleau de ruban Adhesif | M153: 25.05
I154: R100258635 | K154: Rouleau Absorbant Gris | M154: 68.86
I155: R100201617 | K155: Chaussures securite PT43 SAFRAN BASSE | M155: 27.2
I156: R100503295 | K156: Chaussures MONTANTE CUIR PLEINE FLEUR Taille 43 | M156: 35.27
I157: R100643527 | K157: Chaussures CUIR PLEINE FLEUR Taille 43 | M157: 49.31
I158: R100613334 | K158: Chaussures MI- HAUTES CUIR PLEINE FLEUR HYDROFUGE Taille37 | M158: 30.32
I159: R100702879 | K159: Testeur allume cigare pour automobile | M159: 12.68
I160: R100386177 | K160: Chiffon micro fibre Jaune | M160: 117.5
I161: P935852471 | K161: Chiffon boite de 10KG | M161: 6.6
I162: R100053693 | K162: Masque peinture à filtre | M162: 8.67
I163: P935853177 | K163: Eponge mixte jaune vert | M163: 0.4
I164: R100450309 | K164: Bombe noir presse | M164: 4.85
I165: R100212363 | K165: CADENAS LAITON MASSIF 40MM H:63MM EP:14 | M165: 3.73
I166: R100095946 | K166: SAC POLYETHYLENE 110L 6 TRANSLUCIDE 700 300 sacs | M166: 0.16
I167: R100518647 | K167: Chaussures TYPE BASKET H CUIR VELOURS Taille 42 | M167: 30.73
I168: P935852108 | K168: Chiffonnettes NON TISSE BLEU CELLULOSE POLYESTER 72GRS Lot de 500 | M168: 65
I169: R100691939 | K169: Clé USB avec témoin lumineux pour test | M169: 17.75
I170: R100742802 | K170: Bombe aérosol 650 ml Dustergreen pour tracage | M170: 16.14
I171: R100655992 | K171: Rouleau de film adhesif vinyle acrylique (marouflage) 9988 | M171: 0.01
I172: R100526533 | K172: BIDON 20L DT 492 (D:1,04) Nettoyage Bat Tracage | M172: 42.4
